Workbook

Sheet iniTurma
B1: Ano: | C1: 2 | E1: Média: | F1: =IF(COUNTA(F4:F53)>0,AVERAGE(F4:F53),"") -> 12.5 | G1: =IF(COUNTA(G4:G53)>0,AVERAGE(G4:G53),"") -> 10.16666667 | H1: 8.945454545 | I1: 29.86666667
A2: =COUNTIF(B4:B53,"x") -> 1 | B2: Turma: | C2: A | E2: Desvio-padrão: | F2: =IF(COUNTA(F4:F53)>0,_xlfn.STDEV.P(F4:F53),"") -> 1.707825128 | G2: =IF(COUNTA(G4:G53)>0,_xlfn.STDEV.P(G4:G53),"") -> 1.818118686 | H2: 2.424632544 | I2: 4.077853466
A3: ID Aluno | B3: =_xlfn.CONCAT("Ver: ",COUNTIF(B4:B53,"x")) -> Ver: 1 | C3: Nome | D3: Idade | E3: Data | F3: Agilidade | G3: Shuttle run 20m | H3: Força de preensão | I3: Salto horizontal
A4: 1 | C4: Micas | D4: 13 | E4: 2024-12-12 | F4: 10 | G4: 10 | H4: 6 | I4: 32
A5: =A4+1 -> 2 | C5: Tecas | D5: 12 | E5: 2024-12-12 | F5: 11 | G5: 9 | H5: 7 | I5: 38
A6: =A5+1 -> 3 | B6: x | C6: Lecas | D6: 15 | E6: 2024-12-12 | F6: 12 | G6: 8 | H6: 8.3 | I6: 25
A7: 4 | C7: Becas | D7: 8 | E7: 2024-12-13 | F7: 13 | G7: 7 | I7: 31
A8: 5 | C8: Nocas | D8: 11 | E8: 2024-12-13 | F8: 14 | G8: 11 | H8: 7 | I8: 24
A9: 6 | C9: Françoise Hardy | D9: 12 | E9: 2024-12-14 | F9: 15 | G9: 11 | H9: 8 | I9: 27
A10: 7 | C10: Asterix | D10: 16 | E10: 2024-12-14 | F10: 10 | G10: 13 | H10: 11.5 | I10: 36
A11: 8 | C11: Obelix | D11: 14 | E11: 2024-12-14 | F11: 11 | G11: 9 | H11: 14.7 | I11: 27
A12: 9 | C12: Ideiafix | D12: 13 | E12: 2024-12-14 | F12: 12 | G12: 12 | H12: 11 | I12: 28
A13: 10 | C13: Sylvie Vartan | D13: 13 | E13: 2024-12-15 | F13: 13 | G13: 13 | H13: 7.3 | I13: 31
A14: 11 | C14: Carlos Lopes | D14: 14 | E14: 2024-12-15 | F14: 14 | G14: 9 | H14: 8.3 | I14: 32
A15: 12 | C15: Rosa Mota | D15: 14 | E15: 2024-12-15 | F15: 15 | G15: 10 | H15: 9.3 | I15: 27.4
A16: 13
A17: 14
A18: 15
A19: 16
A20: 17
A21: 18
A22: 19
A23: 20
A24: 21
A25: 22
A26: 23
A27: 24
A28: 25
A29: 26
A30: 27
A31: 28
A32: 29
A33: 30
A34: 31
A35: 32
A36: 33
A37: 34
A38: 35
A39: 36
A40: 37
A41: 38
A42: 39
A43: 40
A44: 41
A45: 42
A46: 43
A47: 44
A48: 45
A49: 46
A50: 47
A51: 48
A52: 49
A53: 50

Sheet iniRelatório
A1: RELATÓRIO INDIVIDUAL PREFIT BATTERY
A2: =IF(iniTurma!A2=1,VLOOKUP("x",iniTurma!B$4:M$53,2,0),"") -> Lecas
A3: =IF(iniTurma!A2=1,_xlfn.CONCAT(TEXT(VLOOKUP("x",iniTurma!B$4:M$53,4,0),"dd-mm-aaaa")," | ",iniTurma!C1,"º ano"," | ",iniTurma!C2),"") -> 12-12-2024 | 2º ano | A
B5: Resultado | D5: Média | F5: Mínimo | H5: Máximo
B6: da criança | D6: da turma | F6: da turma | H6: da turma
A7: APTIDÃO MOTORA
A8: =IF(iniTurma!A2=1,IFERROR(VLOOKUP(1,iniAuxiliar!L3:Q3,2,0),""),"") -> Agilidade | B8: =IF(iniTurma!A2=1,IFERROR(VLOOKUP(1,iniAuxiliar!L3:Q3,3,0),0),0) -> 12 | D8: =IF(iniTurma!A2=1,IFERROR(VLOOKUP(1,iniAuxiliar!L3:Q3,4,0),0),0) -> 12.5 | F8: =IF(iniTurma!A2=1,IFERROR(VLOOKUP(1,iniAuxiliar!L3:Q3,5,0),0),0) -> 10 | H8: =IF(iniTurma!A2=1,IFERROR(VLOOKUP(1,iniAuxiliar!L3:Q3,6,0),0),0) -> 15
A12: APTIDÃO CARDIORRESPIRATÓRIA
A13: =IF(iniTurma!A2=1,IFERROR(VLOOKUP(1,iniAuxiliar!L4:Q4,2,0),""),"") -> Shuttle run 20m | B13: =IF(iniTurma!A2=1,IFERROR(VLOOKUP(1,iniAuxiliar!L4:Q4,3,0),0),0) -> 8 | D13: =IF(iniTurma!A2=1,IFERROR(VLOOKUP(1,iniAuxiliar!L4:Q4,4,0),0),0) -> 10.16666667 | F13: =IF(iniTurma!A2=1,IFERROR(VLOOKUP(1,iniAuxiliar!L4:Q4,5,0),0),0) -> 7 | H13: =IF(iniTurma!A2=1,IFERROR(VLOOKUP(1,iniAuxiliar!L4:Q4,6,0),0),0) -> 13
A17: APTIDÃO MOTORA
A18: =IF(iniTurma!A2=1,IFERROR(VLOOKUP(1,iniAuxiliar!L5:Q6,2,0),""),"") -> Força de preensão | B18: =IF(iniTurma!A2=1,IFERROR(VLOOKUP(1,iniAuxiliar!L5:Q6,3,0),0),0) -> 8.3 | D18: =IF(iniTurma!A2=1,IFERROR(VLOOKUP(1,iniAuxiliar!L5:Q6,4,0),0),0) -> 8.945454545 | F18: =IF(iniTurma!A2=1,IFERROR(VLOOKUP(1,iniAuxiliar!L5:Q6,5,0),0),0) -> 6 | H18: =IF(iniTurma!A2=1,IFERROR(VLOOKUP(1,iniAuxiliar!L5:Q6,6,0),0),0) -> 14.7
A20: =IF(iniTurma!A2=1,IFERROR(VLOOKUP(2,iniAuxiliar!L5:Q6,2,0),""),"") -> Salto horizontal | B20: =IF(iniTurma!A2=1,IFERROR(VLOOKUP(2,iniAuxiliar!L5:Q6,3,0),0),0) -> 25 | D20: =IF(iniTurma!A2=1,IFERROR(VLOOKUP(2,iniAuxiliar!L5:Q6,4,0),0),0) -> 29.86666667 | F20: =IF(iniTurma!A2=1,IFERROR(VLOOKUP(2,iniAuxiliar!L5:Q6,5,0),0),0) -> 24 | H20: =IF(iniTurma!A2=1,IFERROR(VLOOKUP(2,iniAuxiliar!L5:Q6,6,0),0),0) -> 38
A25: Perfil multivariado

Sheet iniScore Z
A3: =iniTurma!B3 -> Ver: 1 | B3: =iniTurma!A3 -> ID Aluno | C3: =iniTurma!C3 -> Nome | D3: =iniTurma!D3 -> Idade | E3: =iniTurma!F3 -> Agilidade | F3: =iniTurma!G3 -> Shuttle run 20m | G3: =iniTurma!H3 -> Força de preensão | H3: =iniTurma!I3 -> Salto horizontal
A4: =IF(iniTurma!B4<>"",iniTurma!B4,"") ->  | B4: =iniTurma!A4 -> 1 | C4: =IF(iniTurma!C4<>"",iniTurma!C4,"") -> Micas | D4: =IF(iniTurma!D4<>"",iniTurma!D4,"") -> 13 | E4: =IF(AND(iniTurma!F$2<>"",iniTurma!F4<>""),(iniTurma!F4-iniTurma!F$1)/iniTurma!F$2,"") -> -1.463850109 | F4: =IF(AND(iniTurma!G$2<>"",iniTurma!G4<>""),(iniTurma!G4-iniTurma!G$1)/iniTurma!G$2,"") -> -0.0916698497 | G4: =IF(AND(iniTurma!H$2<>"",iniTurma!H4<>""),(iniTurma!H4-iniTurma!H$1)/iniTurma!H$2,"") -> -1.214804508 | H4: =IF(AND(iniTurma!I$2<>"",iniTurma!I4<>""),(iniTurma!I4-iniTurma!I$1)/iniTurma!I$2,"") -> 0.5231510527
A5: =IF(iniTurma!B5<>"",iniTurma!B5,"") ->  | B5: =iniTurma!A5 -> 2 | C5: =IF(iniTurma!C5<>"",iniTurma!C5,"") -> Tecas | D5: =IF(iniTurma!D5<>"",iniTurma!D5,"") -> 12 | E5: =IF(AND(iniTurma!F$2<>"",iniTurma!F5<>""),(iniTurma!F5-iniTurma!F$1)/iniTurma!F$2,"") -> -0.8783100657 | F5: =IF(AND(iniTurma!G$2<>"",iniTurma!G5<>""),(iniTurma!G5-iniTurma!G$1)/iniTurma!G$2,"") -> -0.6416889479 | G5: =IF(AND(iniTurma!H$2<>"",iniTurma!H5<>""),(iniTurma!H5-iniTurma!H$1)/iniTurma!H$2,"") -> -0.8023708788 | H5: =IF(AND(iniTurma!I$2<>"",iniTurma!I5<>""),(iniTurma!I5-iniTurma!I$1)/iniTurma!I$2,"") -> 1.994513388
A6: =IF(iniTurma!B6<>"",iniTurma!B6,"") -> x | B6: =iniTurma!A6 -> 3 | C6: =IF(iniTurma!C6<>"",iniTurma!C6,"") -> Lecas | D6: =IF(iniTurma!D6<>"",iniTurma!D6,"") -> 15 | E6: =IF(AND(iniTurma!F$2<>"",iniTurma!F6<>""),(iniTurma!F6-iniTurma!F$1)/iniTurma!F$2,"") -> -0.2927700219 | F6: =IF(AND(iniTurma!G$2<>"",iniTurma!G6<>""),(iniTurma!G6-iniTurma!G$1)/iniTurma!G$2,"") -> -1.191708046 | G6: =IF(AND(iniTurma!H$2<>"",iniTurma!H6<>""),(iniTurma!H6-iniTurma!H$1)/iniTurma!H$2,"") -> -0.2662071607 | H6: =IF(AND(iniTurma!I$2<>"",iniTurma!I6<>""),(iniTurma!I6-iniTurma!I$1)/iniTurma!I$2,"") -> -1.193438339
A7: =IF(iniTurma!B7<>"",iniTurma!B7,"") ->  | B7: =iniTurma!A7 -> 4 | C7: =IF(iniTurma!C7<>"",iniTurma!C7,"") -> Becas | D7: =IF(iniTurma!D7<>"",iniTurma!D7,"") -> 8 | E7: =IF(AND(iniTurma!F$2<>"",iniTurma!F7<>""),(iniTurma!F7-iniTurma!F$1)/iniTurma!F$2,"") -> 0.2927700219 | F7: =IF(AND(iniTurma!G$2<>"",iniTurma!G7<>""),(iniTurma!G7-iniTurma!G$1)/iniTurma!G$2,"") -> -1.741727144 | G7: =IF(AND(iniTurma!H$2<>"",iniTurma!H7<>""),(iniTurma!H7-iniTurma!H$1)/iniTurma!H$2,"") ->  | H7: =IF(AND(iniTurma!I$2<>"",iniTurma!I7<>""),(iniTurma!I7-iniTurma!I$1)/iniTurma!I$2,"") -> 0.2779239967
A8: =IF(iniTurma!B8<>"",iniTurma!B8,"") ->  | B8: =iniTurma!A8 -> 5 | C8: =IF(iniTurma!C8<>"",iniTurma!C8,"") -> Nocas | D8: =IF(iniTurma!D8<>"",iniTurma!D8,"") -> 11 | E8: =IF(AND(iniTurma!F$2<>"",iniTurma!F8<>""),(iniTurma!F8-iniTurma!F$1)/iniTurma!F$2,"") -> 0.8783100657 | F8: =IF(AND(iniTurma!G$2<>"",iniTurma!G8<>""),(iniTurma!G8-iniTurma!G$1)/iniTurma!G$2,"") -> 0.4583492485 | G8: =IF(AND(iniTurma!H$2<>"",iniTurma!H8<>""),(iniTurma!H8-iniTurma!H$1)/iniTurma!H$2,"") -> -0.8023708788 | H8: =IF(AND(iniTurma!I$2<>"",iniTurma!I8<>""),(iniTurma!I8-iniTurma!I$1)/iniTurma!I$2,"") -> -1.438665395
A9: =IF(iniTurma!B9<>"",iniTurma!B9,"") ->  | B9: =iniTurma!A9 -> 6 | C9: =IF(iniTurma!C9<>"",iniTurma!C9,"") -> Françoise Hardy | D9: =IF(iniTurma!D9<>"",iniTurma!D9,"") -> 12 | E9: =IF(AND(iniTurma!F$2<>"",iniTurma!F9<>""),(iniTurma!F9-iniTurma!F$1)/iniTurma!F$2,"") -> 1.463850109 | F9: =IF(AND(iniTurma!G$2<>"",iniTurma!G9<>""),(iniTurma!G9-iniTurma!G$1)/iniTurma!G$2,"") -> 0.4583492485 | G9: =IF(AND(iniTurma!H$2<>"",iniTurma!H9<>""),(iniTurma!H9-iniTurma!H$1)/iniTurma!H$2,"") -> -0.3899372495 | H9: =IF(AND(iniTurma!I$2<>"",iniTurma!I9<>""),(iniTurma!I9-iniTurma!I$1)/iniTurma!I$2,"") -> -0.702984227
A10: =IF(iniTurma!B10<>"",iniTurma!B10,"") ->  | B10: =iniTurma!A10 -> 7 | C10: =IF(iniTurma!C10<>"",iniTurma!C10,"") -> Asterix | D10: =IF(iniTurma!D10<>"",iniTurma!D10,"") -> 16 | E10: =IF(AND(iniTurma!F$2<>"",iniTurma!F10<>""),(iniTurma!F10-iniTurma!F$1)/iniTurma!F$2,"") -> -1.463850109 | F10: =IF(AND(iniTurma!G$2<>"",iniTurma!G10<>""),(iniTurma!G10-iniTurma!G$1)/iniTurma!G$2,"") -> 1.558387445 | G10: =IF(AND(iniTurma!H$2<>"",iniTurma!H10<>""),(iniTurma!H10-iniTurma!H$1)/iniTurma!H$2,"") -> 1.053580453 | H10: =IF(AND(iniTurma!I$2<>"",iniTurma!I10<>""),(iniTurma!I10-iniTurma!I$1)/iniTurma!I$2,"") -> 1.504059276
A11: =IF(iniTurma!B11<>"",iniTurma!B11,"") ->  | B11: =iniTurma!A11 -> 8 | C11: =IF(iniTurma!C11<>"",iniTurma!C11,"") -> Obelix | D11: =IF(iniTurma!D11<>"",iniTurma!D11,"") -> 14 | E11: =IF(AND(iniTurma!F$2<>"",iniTurma!F11<>""),(iniTurma!F11-iniTurma!F$1)/iniTurma!F$2,"") -> -0.8783100657 | F11: =IF(AND(iniTurma!G$2<>"",iniTurma!G11<>""),(iniTurma!G11-iniTurma!G$1)/iniTurma!G$2,"") -> -0.6416889479 | G11: =IF(AND(iniTurma!H$2<>"",iniTurma!H11<>""),(iniTurma!H11-iniTurma!H$1)/iniTurma!H$2,"") -> 2.373368067 | H11: =IF(AND(iniTurma!I$2<>"",iniTurma!I11<>""),(iniTurma!I11-iniTurma!I$1)/iniTurma!I$2,"") -> -0.702984227
A12: =IF(iniTurma!B12<>"",iniTurma!B12,"") ->  | B12: =iniTurma!A12 -> 9 | C12: =IF(iniTurma!C12<>"",iniTurma!C12,"") -> Ideiafix | D12: =IF(iniTurma!D12<>"",iniTurma!D12,"") -> 13 | E12: =IF(AND(iniTurma!F$2<>"",iniTurma!F12<>""),(iniTurma!F12-iniTurma!F$1)/iniTurma!F$2,"") -> -0.2927700219 | F12: =IF(AND(iniTurma!G$2<>"",iniTurma!G12<>""),(iniTurma!G12-iniTurma!G$1)/iniTurma!G$2,"") -> 1.008368347 | G12: =IF(AND(iniTurma!H$2<>"",iniTurma!H12<>""),(iniTurma!H12-iniTurma!H$1)/iniTurma!H$2,"") -> 0.8473636384 | H12: =IF(AND(iniTurma!I$2<>"",iniTurma!I12<>""),(iniTurma!I12-iniTurma!I$1)/iniTurma!I$2,"") -> -0.4577571711
A13: =IF(iniTurma!B13<>"",iniTurma!B13,"") ->  | B13: =iniTurma!A13 -> 10 | C13: =IF(iniTurma!C13<>"",iniTurma!C13,"") -> Sylvie Vartan | D13: =IF(iniTurma!D13<>"",iniTurma!D13,"") -> 13 | E13: =IF(AND(iniTurma!F$2<>"",iniTurma!F13<>""),(iniTurma!F13-iniTurma!F$1)/iniTurma!F$2,"") -> 0.2927700219 | F13: =IF(AND(iniTurma!G$2<>"",iniTurma!G13<>""),(iniTurma!G13-iniTurma!G$1)/iniTurma!G$2,"") -> 1.558387445 | G13: =IF(AND(iniTurma!H$2<>"",iniTurma!H13<>""),(iniTurma!H13-iniTurma!H$1)/iniTurma!H$2,"") -> -0.67864079 | H13: =IF(AND(iniTurma!I$2<>"",iniTurma!I13<>""),(iniTurma!I13-iniTurma!I$1)/iniTurma!I$2,"") -> 0.2779239967
A14: =IF(iniTurma!B14<>"",iniTurma!B14,"") ->  | B14: =iniTurma!A14 -> 11 | C14: =IF(iniTurma!C14<>"",iniTurma!C14,"") -> Carlos Lopes | D14: =IF(iniTurma!D14<>"",iniTurma!D14,"") -> 14 | E14: =IF(AND(iniTurma!F$2<>"",iniTurma!F14<>""),(iniTurma!F14-iniTurma!F$1)/iniTurma!F$2,"") -> 0.8783100657 | F14: =IF(AND(iniTurma!G$2<>"",iniTurma!G14<>""),(iniTurma!G14-iniTurma!G$1)/iniTurma!G$2,"") -> -0.6416889479 | G14: =IF(AND(iniTurma!H$2<>"",iniTurma!H14<>""),(iniTurma!H14-iniTurma!H$1)/iniTurma!H$2,"") -> -0.2662071607 | H14: =IF(AND(iniTurma!I$2<>"",iniTurma!I14<>""),(iniTurma!I14-iniTurma!I$1)/iniTurma!I$2,"") -> 0.5231510527
A15: =IF(iniTurma!B15<>"",iniTurma!B15,"") ->  | B15: =iniTurma!A15 -> 12 | C15: =IF(iniTurma!C15<>"",iniTurma!C15,"") -> Rosa Mota | D15: =IF(iniTurma!D15<>"",iniTurma!D15,"") -> 14 | E15: =IF(AND(iniTurma!F$2<>"",iniTurma!F15<>""),(iniTurma!F15-iniTurma!F$1)/iniTurma!F$2,"") -> 1.463850109 | F15: =IF(AND(iniTurma!G$2<>"",iniTurma!G15<>""),(iniTurma!G15-iniTurma!G$1)/iniTurma!G$2,"") -> -0.0916698497 | G15: =IF(AND(iniTurma!H$2<>"",iniTurma!H15<>""),(iniTurma!H15-iniTurma!H$1)/iniTurma!H$2,"") -> 0.1462264686 | H15: =IF(AND(iniTurma!I$2<>"",iniTurma!I15<>""),(iniTurma!I15-iniTurma!I$1)/iniTurma!I$2,"") -> -0.6048934047
A16: =IF(iniTurma!B16<>"",iniTurma!B16,"") ->  | B16: =iniTurma!A16 -> 13 | C16: =IF(iniTurma!C16<>"",iniTurma!C16,"") ->  | D16: =IF(iniTurma!D16<>"",iniTurma!D16,"") ->  | E16: =IF(AND(iniTurma!F$2<>"",iniTurma!F16<>""),(iniTurma!F16-iniTurma!F$1)/iniTurma!F$2,"") ->  | F16: =IF(AND(iniTurma!G$2<>"",iniTurma!G16<>""),(iniTurma!G16-iniTurma!G$1)/iniTurma!G$2,"") ->  | G16: =IF(AND(iniTurma!H$2<>"",iniTurma!H16<>""),(iniTurma!H16-iniTurma!H$1)/iniTurma!H$2,"") ->  | H16: =IF(AND(iniTurma!I$2<>"",iniTurma!I16<>""),(iniTurma!I16-iniTurma!I$1)/iniTurma!I$2,"") -> 
A17: =IF(iniTurma!B17<>"",iniTurma!B17,"") ->  | B17: =iniTurma!A17 -> 14 | C17: =IF(iniTurma!C17<>"",iniTurma!C17,"") ->  | D17: =IF(iniTurma!D17<>"",iniTurma!D17,"") ->  | E17: =IF(AND(iniTurma!F$2<>"",iniTurma!F17<>""),(iniTurma!F17-iniTurma!F$1)/iniTurma!F$2,"") ->  | F17: =IF(AND(iniTurma!G$2<>"",iniTurma!G17<>""),(iniTurma!G17-iniTurma!G$1)/iniTurma!G$2,"") ->  | G17: =IF(AND(iniTurma!H$2<>"",iniTurma!H17<>""),(iniTurma!H17-iniTurma!H$1)/iniTurma!H$2,"") ->  | H17: =IF(AND(iniTurma!I$2<>"",iniTurma!I17<>""),(iniTurma!I17-iniTurma!I$1)/iniTurma!I$2,"") -> 
A18: =IF(iniTurma!B18<>"",iniTurma!B18,"") ->  | B18: =iniTurma!A18 -> 15 | C18: =IF(iniTurma!C18<>"",iniTurma!C18,"") ->  | D18: =IF(iniTurma!D18<>"",iniTurma!D18,"") ->  | E18: =IF(AND(iniTurma!F$2<>"",iniTurma!F18<>""),(iniTurma!F18-iniTurma!F$1)/iniTurma!F$2,"") ->  | F18: =IF(AND(iniTurma!G$2<>"",iniTurma!G18<>""),(iniTurma!G18-iniTurma!G$1)/iniTurma!G$2,"") ->  | G18: =IF(AND(iniTurma!H$2<>"",iniTurma!H18<>""),(iniTurma!H18-iniTurma!H$1)/iniTurma!H$2,"") ->  | H18: =IF(AND(iniTurma!I$2<>"",iniTurma!I18<>""),(iniTurma!I18-iniTurma!I$1)/iniTurma!I$2,"") -> 
A19: =IF(iniTurma!B19<>"",iniTurma!B19,"") ->  | B19: =iniTurma!A19 -> 16 | C19: =IF(iniTurma!C19<>"",iniTurma!C19,"") ->  | D19: =IF(iniTurma!D19<>"",iniTurma!D19,"") ->  | E19: =IF(AND(iniTurma!F$2<>"",iniTurma!F19<>""),(iniTurma!F19-iniTurma!F$1)/iniTurma!F$2,"") ->  | F19: =IF(AND(iniTurma!G$2<>"",iniTurma!G19<>""),(iniTurma!G19-iniTurma!G$1)/iniTurma!G$2,"") ->  | G19: =IF(AND(iniTurma!H$2<>"",iniTurma!H19<>""),(iniTurma!H19-iniTurma!H$1)/iniTurma!H$2,"") ->  | H19: =IF(AND(iniTurma!I$2<>"",iniTurma!I19<>""),(iniTurma!I19-iniTurma!I$1)/iniTurma!I$2,"") -> 
A20: =IF(iniTurma!B20<>"",iniTurma!B20,"") ->  | B20: =iniTurma!A20 -> 17 | C20: =IF(iniTurma!C20<>"",iniTurma!C20,"") ->  | D20: =IF(iniTurma!D20<>"",iniTurma!D20,"") ->  | E20: =IF(AND(iniTurma!F$2<>"",iniTurma!F20<>""),(iniTurma!F20-iniTurma!F$1)/iniTurma!F$2,"") ->  | F20: =IF(AND(iniTurma!G$2<>"",iniTurma!G20<>""),(iniTurma!G20-iniTurma!G$1)/iniTurma!G$2,"") ->  | G20: =IF(AND(iniTurma!H$2<>"",iniTurma!H20<>""),(iniTurma!H20-iniTurma!H$1)/iniTurma!H$2,"") ->  | H20: =IF(AND(iniTurma!I$2<>"",iniTurma!I20<>""),(iniTurma!I20-iniTurma!I$1)/iniTurma!I$2,"") -> 
A21: =IF(iniTurma!B21<>"",iniTurma!B21,"") ->  | B21: =iniTurma!A21 -> 18 | C21: =IF(iniTurma!C21<>"",iniTurma!C21,"") ->  | D21: =IF(iniTurma!D21<>"",iniTurma!D21,"") ->  | E21: =IF(AND(iniTurma!F$2<>"",iniTurma!F21<>""),(iniTurma!F21-iniTurma!F$1)/iniTurma!F$2,"") ->  | F21: =IF(AND(iniTurma!G$2<>"",iniTurma!G21<>""),(iniTurma!G21-iniTurma!G$1)/iniTurma!G$2,"") ->  | G21: =IF(AND(iniTurma!H$2<>"",iniTurma!H21<>""),(iniTurma!H21-iniTurma!H$1)/iniTurma!H$2,"") ->  | H21: =IF(AND(iniTurma!I$2<>"",iniTurma!I21<>""),(iniTurma!I21-iniTurma!I$1)/iniTurma!I$2,"") -> 
A22: =IF(iniTurma!B22<>"",iniTurma!B22,"") ->  | B22: =iniTurma!A22 -> 19 | C22: =IF(iniTurma!C22<>"",iniTurma!C22,"") ->  | D22: =IF(iniTurma!D22<>"",iniTurma!D22,"") ->  | E22: =IF(AND(iniTurma!F$2<>"",iniTurma!F22<>""),(iniTurma!F22-iniTurma!F$1)/iniTurma!F$2,"") ->  | F22: =IF(AND(iniTurma!G$2<>"",iniTurma!G22<>""),(iniTurma!G22-iniTurma!G$1)/iniTurma!G$2,"") ->  | G22: =IF(AND(iniTurma!H$2<>"",iniTurma!H22<>""),(iniTurma!H22-iniTurma!H$1)/iniTurma!H$2,"") ->  | H22: =IF(AND(iniTurma!I$2<>"",iniTurma!I22<>""),(iniTurma!I22-iniTurma!I$1)/iniTurma!I$2,"") -> 
A23: =IF(iniTurma!B23<>"",iniTurma!B23,"") ->  | B23: =iniTurma!A23 -> 20 | C23: =IF(iniTurma!C23<>"",iniTurma!C23,"") ->  | D23: =IF(iniTurma!D23<>"",iniTurma!D23,"") ->  | E23: =IF(AND(iniTurma!F$2<>"",iniTurma!F23<>""),(iniTurma!F23-iniTurma!F$1)/iniTurma!F$2,"") ->  | F23: =IF(AND(iniTurma!G$2<>"",iniTurma!G23<>""),(iniTurma!G23-iniTurma!G$1)/iniTurma!G$2,"") ->  | G23: =IF(AND(iniTurma!H$2<>"",iniTurma!H23<>""),(iniTurma!H23-iniTurma!H$1)/iniTurma!H$2,"") ->  | H23: =IF(AND(iniTurma!I$2<>"",iniTurma!I23<>""),(iniTurma!I23-iniTurma!I$1)/iniTurma!I$2,"") -> 
A24: =IF(iniTurma!B24<>"",iniTurma!B24,"") ->  | B24: =iniTurma!A24 -> 21 | C24: =IF(iniTurma!C24<>"",iniTurma!C24,"") ->  | D24: =IF(iniTurma!D24<>"",iniTurma!D24,"") ->  | E24: =IF(AND(iniTurma!F$2<>"",iniTurma!F24<>""),(iniTurma!F24-iniTurma!F$1)/iniTurma!F$2,"") ->  | F24: =IF(AND(iniTurma!G$2<>"",iniTurma!G24<>""),(iniTurma!G24-iniTurma!G$1)/iniTurma!G$2,"") ->  | G24: =IF(AND(iniTurma!H$2<>"",iniTurma!H24<>""),(iniTurma!H24-iniTurma!H$1)/iniTurma!H$2,"") ->  | H24: =IF(AND(iniTurma!I$2<>"",iniTurma!I24<>""),(iniTurma!I24-iniTurma!I$1)/iniTurma!I$2,"") -> 
A25: =IF(iniTurma!B25<>"",iniTurma!B25,"") ->  | B25: =iniTurma!A25 -> 22 | C25: =IF(iniTurma!C25<>"",iniTurma!C25,"") ->  | D25: =IF(iniTurma!D25<>"",iniTurma!D25,"") ->  | E25: =IF(AND(iniTurma!F$2<>"",iniTurma!F25<>""),(iniTurma!F25-iniTurma!F$1)/iniTurma!F$2,"") ->  | F25: =IF(AND(iniTurma!G$2<>"",iniTurma!G25<>""),(iniTurma!G25-iniTurma!G$1)/iniTurma!G$2,"") ->  | G25: =IF(AND(iniTurma!H$2<>"",iniTurma!H25<>""),(iniTurma!H25-iniTurma!H$1)/iniTurma!H$2,"") ->  | H25: =IF(AND(iniTurma!I$2<>"",iniTurma!I25<>""),(iniTurma!I25-iniTurma!I$1)/iniTurma!I$2,"") -> 
A26: =IF(iniTurma!B26<>"",iniTurma!B26,"") ->  | B26: =iniTurma!A26 -> 23 | C26: =IF(iniTurma!C26<>"",iniTurma!C26,"") ->  | D26: =IF(iniTurma!D26<>"",iniTurma!D26,"") ->  | E26: =IF(AND(iniTurma!F$2<>"",iniTurma!F26<>""),(iniTurma!F26-iniTurma!F$1)/iniTurma!F$2,"") ->  | F26: =IF(AND(iniTurma!G$2<>"",iniTurma!G26<>""),(iniTurma!G26-iniTurma!G$1)/iniTurma!G$2,"") ->  | G26: =IF(AND(iniTurma!H$2<>"",iniTurma!H26<>""),(iniTurma!H26-iniTurma!H$1)/iniTurma!H$2,"") ->  | H26: =IF(AND(iniTurma!I$2<>"",iniTurma!I26<>""),(iniTurma!I26-iniTurma!I$1)/iniTurma!I$2,"") -> 
A27: =IF(iniTurma!B27<>"",iniTurma!B27,"") ->  | B27: =iniTurma!A27 -> 24 | C27: =IF(iniTurma!C27<>"",iniTurma!C27,"") ->  | D27: =IF(iniTurma!D27<>"",iniTurma!D27,"") ->  | E27: =IF(AND(iniTurma!F$2<>"",iniTurma!F27<>""),(iniTurma!F27-iniTurma!F$1)/iniTurma!F$2,"") ->  | F27: =IF(AND(iniTurma!G$2<>"",iniTurma!G27<>""),(iniTurma!G27-iniTurma!G$1)/iniTurma!G$2,"") ->  | G27: =IF(AND(iniTurma!H$2<>"",iniTurma!H27<>""),(iniTurma!H27-iniTurma!H$1)/iniTurma!H$2,"") ->  | H27: =IF(AND(iniTurma!I$2<>"",iniTurma!I27<>""),(iniTurma!I27-iniTurma!I$1)/iniTurma!I$2,"") -> 
A28: =IF(iniTurma!B28<>"",iniTurma!B28,"") ->  | B28: =iniTurma!A28 -> 25 | C28: =IF(iniTurma!C28<>"",iniTurma!C28,"") ->  | D28: =IF(iniTurma!D28<>"",iniTurma!D28,"") ->  | E28: =IF(AND(iniTurma!F$2<>"",iniTurma!F28<>""),(iniTurma!F28-iniTurma!F$1)/iniTurma!F$2,"") ->  | F28: =IF(AND(iniTurma!G$2<>"",iniTurma!G28<>""),(iniTurma!G28-iniTurma!G$1)/iniTurma!G$2,"") ->  | G28: =IF(AND(iniTurma!H$2<>"",iniTurma!H28<>""),(iniTurma!H28-iniTurma!H$1)/iniTurma!H$2,"") ->  | H28: =IF(AND(iniTurma!I$2<>"",iniTurma!I28<>""),(iniTurma!I28-iniTurma!I$1)/iniTurma!I$2,"") -> 
A29: =IF(iniTurma!B29<>"",iniTurma!B29,"") ->  | B29: =iniTurma!A29 -> 26 | C29: =IF(iniTurma!C29<>"",iniTurma!C29,"") ->  | D29: =IF(iniTurma!D29<>"",iniTurma!D29,"") ->  | E29: =IF(AND(iniTurma!F$2<>"",iniTurma!F29<>""),(iniTurma!F29-iniTurma!F$1)/iniTurma!F$2,"") ->  | F29: =IF(AND(iniTurma!G$2<>"",iniTurma!G29<>""),(iniTurma!G29-iniTurma!G$1)/iniTurma!G$2,"") ->  | G29: =IF(AND(iniTurma!H$2<>"",iniTurma!H29<>""),(iniTurma!H29-iniTurma!H$1)/iniTurma!H$2,"") ->  | H29: =IF(AND(iniTurma!I$2<>"",iniTurma!I29<>""),(iniTurma!I29-iniTurma!I$1)/iniTurma!I$2,"") -> 
A30: =IF(iniTurma!B30<>"",iniTurma!B30,"") ->  | B30: =iniTurma!A30 -> 27 | C30: =IF(iniTurma!C30<>"",iniTurma!C30,"") ->  | D30: =IF(iniTurma!D30<>"",iniTurma!D30,"") ->  | E30: =IF(AND(iniTurma!F$2<>"",iniTurma!F30<>""),(iniTurma!F30-iniTurma!F$1)/iniTurma!F$2,"") ->  | F30: =IF(AND(iniTurma!G$2<>"",iniTurma!G30<>""),(iniTurma!G30-iniTurma!G$1)/iniTurma!G$2,"") ->  | G30: =IF(AND(iniTurma!H$2<>"",iniTurma!H30<>""),(iniTurma!H30-iniTurma!H$1)/iniTurma!H$2,"") ->  | H30: =IF(AND(iniTurma!I$2<>"",iniTurma!I30<>""),(iniTurma!I30-iniTurma!I$1)/iniTurma!I$2,"") -> 
A31: =IF(iniTurma!B31<>"",iniTurma!B31,"") ->  | B31: =iniTurma!A31 -> 28 | C31: =IF(iniTurma!C31<>"",iniTurma!C31,"") ->  | D31: =IF(iniTurma!D31<>"",iniTurma!D31,"") ->  | E31: =IF(AND(iniTurma!F$2<>"",iniTurma!F31<>""),(iniTurma!F31-iniTurma!F$1)/iniTurma!F$2,"") ->  | F31: =IF(AND(iniTurma!G$2<>"",iniTurma!G31<>""),(iniTurma!G31-iniTurma!G$1)/iniTurma!G$2,"") ->  | G31: =IF(AND(iniTurma!H$2<>"",iniTurma!H31<>""),(iniTurma!H31-iniTurma!H$1)/iniTurma!H$2,"") ->  | H31: =IF(AND(iniTurma!I$2<>"",iniTurma!I31<>""),(iniTurma!I31-iniTurma!I$1)/iniTurma!I$2,"") -> 
A32: =IF(iniTurma!B32<>"",iniTurma!B32,"") ->  | B32: =iniTurma!A32 -> 29 | C32: =IF(iniTurma!C32<>"",iniTurma!C32,"") ->  | D32: =IF(iniTurma!D32<>"",iniTurma!D32,"") ->  | E32: =IF(AND(iniTurma!F$2<>"",iniTurma!F32<>""),(iniTurma!F32-iniTurma!F$1)/iniTurma!F$2,"") ->  | F32: =IF(AND(iniTurma!G$2<>"",iniTurma!G32<>""),(iniTurma!G32-iniTurma!G$1)/iniTurma!G$2,"") ->  | G32: =IF(AND(iniTurma!H$2<>"",iniTurma!H32<>""),(iniTurma!H32-iniTurma!H$1)/iniTurma!H$2,"") ->  | H32: =IF(AND(iniTurma!I$2<>"",iniTurma!I32<>""),(iniTurma!I32-iniTurma!I$1)/iniTurma!I$2,"") -> 
A33: =IF(iniTurma!B33<>"",iniTurma!B33,"") ->  | B33: =iniTurma!A33 -> 30 | C33: =IF(iniTurma!C33<>"",iniTurma!C33,"") ->  | D33: =IF(iniTurma!D33<>"",iniTurma!D33,"") ->  | E33: =IF(AND(iniTurma!F$2<>"",iniTurma!F33<>""),(iniTurma!F33-iniTurma!F$1)/iniTurma!F$2,"") ->  | F33: =IF(AND(iniTurma!G$2<>"",iniTurma!G33<>""),(iniTurma!G33-iniTurma!G$1)/iniTurma!G$2,"") ->  | G33: =IF(AND(iniTurma!H$2<>"",iniTurma!H33<>""),(iniTurma!H33-iniTurma!H$1)/iniTurma!H$2,"") ->  | H33: =IF(AND(iniTurma!I$2<>"",iniTurma!I33<>""),(iniTurma!I33-iniTurma!I$1)/iniTurma!I$2,"") -> 
A34: =IF(iniTurma!B34<>"",iniTurma!B34,"") ->  | B34: =iniTurma!A34 -> 31 | C34: =IF(iniTurma!C34<>"",iniTurma!C34,"") ->  | D34: =IF(iniTurma!D34<>"",iniTurma!D34,"") ->  | E34: =IF(AND(iniTurma!F$2<>"",iniTurma!F34<>""),(iniTurma!F34-iniTurma!F$1)/iniTurma!F$2,"") ->  | F34: =IF(AND(iniTurma!G$2<>"",iniTurma!G34<>""),(iniTurma!G34-iniTurma!G$1)/iniTurma!G$2,"") ->  | G34: =IF(AND(iniTurma!H$2<>"",iniTurma!H34<>""),(iniTurma!H34-iniTurma!H$1)/iniTurma!H$2,"") ->  | H34: =IF(AND(iniTurma!I$2<>"",iniTurma!I34<>""),(iniTurma!I34-iniTurma!I$1)/iniTurma!I$2,"") -> 
A35: =IF(iniTurma!B35<>"",iniTurma!B35,"") ->  | B35: =iniTurma!A35 -> 32 | C35: =IF(iniTurma!C35<>"",iniTurma!C35,"") ->  | D35: =IF(iniTurma!D35<>"",iniTurma!D35,"") ->  | E35: =IF(AND(iniTurma!F$2<>"",iniTurma!F35<>""),(iniTurma!F35-iniTurma!F$1)/iniTurma!F$2,"") ->  | F35: =IF(AND(iniTurma!G$2<>"",iniTurma!G35<>""),(iniTurma!G35-iniTurma!G$1)/iniTurma!G$2,"") ->  | G35: =IF(AND(iniTurma!H$2<>"",iniTurma!H35<>""),(iniTurma!H35-iniTurma!H$1)/iniTurma!H$2,"") ->  | H35: =IF(AND(iniTurma!I$2<>"",iniTurma!I35<>""),(iniTurma!I35-iniTurma!I$1)/iniTurma!I$2,"") -> 
A36: =IF(iniTurma!B36<>"",iniTurma!B36,"") ->  | B36: =iniTurma!A36 -> 33 | C36: =IF(iniTurma!C36<>"",iniTurma!C36,"") ->  | D36: =IF(iniTurma!D36<>"",iniTurma!D36,"") ->  | E36: =IF(AND(iniTurma!F$2<>"",iniTurma!F36<>""),(iniTurma!F36-iniTurma!F$1)/iniTurma!F$2,"") ->  | F36: =IF(AND(iniTurma!G$2<>"",iniTurma!G36<>""),(iniTurma!G36-iniTurma!G$1)/iniTurma!G$2,"") ->  | G36: =IF(AND(iniTurma!H$2<>"",iniTurma!H36<>""),(iniTurma!H36-iniTurma!H$1)/iniTurma!H$2,"") ->  | H36: =IF(AND(iniTurma!I$2<>"",iniTurma!I36<>""),(iniTurma!I36-iniTurma!I$1)/iniTurma!I$2,"") -> 
A37: =IF(iniTurma!B37<>"",iniTurma!B37,"") ->  | B37: =iniTurma!A37 -> 34 | C37: =IF(iniTurma!C37<>"",iniTurma!C37,"") ->  | D37: =IF(iniTurma!D37<>"",iniTurma!D37,"") ->  | E37: =IF(AND(iniTurma!F$2<>"",iniTurma!F37<>""),(iniTurma!F37-iniTurma!F$1)/iniTurma!F$2,"") ->  | F37: =IF(AND(iniTurma!G$2<>"",iniTurma!G37<>""),(iniTurma!G37-iniTurma!G$1)/iniTurma!G$2,"") ->  | G37: =IF(AND(iniTurma!H$2<>"",iniTurma!H37<>""),(iniTurma!H37-iniTurma!H$1)/iniTurma!H$2,"") ->  | H37: =IF(AND(iniTurma!I$2<>"",iniTurma!I37<>""),(iniTurma!I37-iniTurma!I$1)/iniTurma!I$2,"") -> 
A38: =IF(iniTurma!B38<>"",iniTurma!B38,"") ->  | B38: =iniTurma!A38 -> 35 | C38: =IF(iniTurma!C38<>"",iniTurma!C38,"") ->  | D38: =IF(iniTurma!D38<>"",iniTurma!D38,"") ->  | E38: =IF(AND(iniTurma!F$2<>"",iniTurma!F38<>""),(iniTurma!F38-iniTurma!F$1)/iniTurma!F$2,"") ->  | F38: =IF(AND(iniTurma!G$2<>"",iniTurma!G38<>""),(iniTurma!G38-iniTurma!G$1)/iniTurma!G$2,"") ->  | G38: =IF(AND(iniTurma!H$2<>"",iniTurma!H38<>""),(iniTurma!H38-iniTurma!H$1)/iniTurma!H$2,"") ->  | H38: =IF(AND(iniTurma!I$2<>"",iniTurma!I38<>""),(iniTurma!I38-iniTurma!I$1)/iniTurma!I$2,"") -> 
A39: =IF(iniTurma!B39<>"",iniTurma!B39,"") ->  | B39: =iniTurma!A39 -> 36 | C39: =IF(iniTurma!C39<>"",iniTurma!C39,"") ->  | D39: =IF(iniTurma!D39<>"",iniTurma!D39,"") ->  | E39: =IF(AND(iniTurma!F$2<>"",iniTurma!F39<>""),(iniTurma!F39-iniTurma!F$1)/iniTurma!F$2,"") ->  | F39: =IF(AND(iniTurma!G$2<>"",iniTurma!G39<>""),(iniTurma!G39-iniTurma!G$1)/iniTurma!G$2,"") ->  | G39: =IF(AND(iniTurma!H$2<>"",iniTurma!H39<>""),(iniTurma!H39-iniTurma!H$1)/iniTurma!H$2,"") ->  | H39: =IF(AND(iniTurma!I$2<>"",iniTurma!I39<>""),(iniTurma!I39-iniTurma!I$1)/iniTurma!I$2,"") -> 
A40: =IF(iniTurma!B40<>"",iniTurma!B40,"") ->  | B40: =iniTurma!A40 -> 37 | C40: =IF(iniTurma!C40<>"",iniTurma!C40,"") ->  | D40: =IF(iniTurma!D40<>"",iniTurma!D40,"") ->  | E40: =IF(AND(iniTurma!F$2<>"",iniTurma!F40<>""),(iniTurma!F40-iniTurma!F$1)/iniTurma!F$2,"") ->  | F40: =IF(AND(iniTurma!G$2<>"",iniTurma!G40<>""),(iniTurma!G40-iniTurma!G$1)/iniTurma!G$2,"") ->  | G40: =IF(AND(iniTurma!H$2<>"",iniTurma!H40<>""),(iniTurma!H40-iniTurma!H$1)/iniTurma!H$2,"") ->  | H40: =IF(AND(iniTurma!I$2<>"",iniTurma!I40<>""),(iniTurma!I40-iniTurma!I$1)/iniTurma!I$2,"") -> 
A41: =IF(iniTurma!B41<>"",iniTurma!B41,"") ->  | B41: =iniTurma!A41 -> 38 | C41: =IF(iniTurma!C41<>"",iniTurma!C41,"") ->  | D41: =IF(iniTurma!D41<>"",iniTurma!D41,"") ->  | E41: =IF(AND(iniTurma!F$2<>"",iniTurma!F41<>""),(iniTurma!F41-iniTurma!F$1)/iniTurma!F$2,"") ->  | F41: =IF(AND(iniTurma!G$2<>"",iniTurma!G41<>""),(iniTurma!G41-iniTurma!G$1)/iniTurma!G$2,"") ->  | G41: =IF(AND(iniTurma!H$2<>"",iniTurma!H41<>""),(iniTurma!H41-iniTurma!H$1)/iniTurma!H$2,"") ->  | H41: =IF(AND(iniTurma!I$2<>"",iniTurma!I41<>""),(iniTurma!I41-iniTurma!I$1)/iniTurma!I$2,"") -> 
A42: =IF(iniTurma!B42<>"",iniTurma!B42,"") ->  | B42: =iniTurma!A42 -> 39 | C42: =IF(iniTurma!C42<>"",iniTurma!C42,"") ->  | D42: =IF(iniTurma!D42<>"",iniTurma!D42,"") ->  | E42: =IF(AND(iniTurma!F$2<>"",iniTurma!F42<>""),(iniTurma!F42-iniTurma!F$1)/iniTurma!F$2,"") ->  | F42: =IF(AND(iniTurma!G$2<>"",iniTurma!G42<>""),(iniTurma!G42-iniTurma!G$1)/iniTurma!G$2,"") ->  | G42: =IF(AND(iniTurma!H$2<>"",iniTurma!H42<>""),(iniTurma!H42-iniTurma!H$1)/iniTurma!H$2,"") ->  | H42: =IF(AND(iniTurma!I$2<>"",iniTurma!I42<>""),(iniTurma!I42-iniTurma!I$1)/iniTurma!I$2,"") -> 
A43: =IF(iniTurma!B43<>"",iniTurma!B43,"") ->  | B43: =iniTurma!A43 -> 40 | C43: =IF(iniTurma!C43<>"",iniTurma!C43,"") ->  | D43: =IF(iniTurma!D43<>"",iniTurma!D43,"") ->  | E43: =IF(AND(iniTurma!F$2<>"",iniTurma!F43<>""),(iniTurma!F43-iniTurma!F$1)/iniTurma!F$2,"") ->  | F43: =IF(AND(iniTurma!G$2<>"",iniTurma!G43<>""),(iniTurma!G43-iniTurma!G$1)/iniTurma!G$2,"") ->  | G43: =IF(AND(iniTurma!H$2<>"",iniTurma!H43<>""),(iniTurma!H43-iniTurma!H$1)/iniTurma!H$2,"") ->  | H43: =IF(AND(iniTurma!I$2<>"",iniTurma!I43<>""),(iniTurma!I43-iniTurma!I$1)/iniTurma!I$2,"") -> 
A44: =IF(iniTurma!B44<>"",iniTurma!B44,"") ->  | B44: =iniTurma!A44 -> 41 | C44: =IF(iniTurma!C44<>"",iniTurma!C44,"") ->  | D44: =IF(iniTurma!D44<>"",iniTurma!D44,"") ->  | E44: =IF(AND(iniTurma!F$2<>"",iniTurma!F44<>""),(iniTurma!F44-iniTurma!F$1)/iniTurma!F$2,"") ->  | F44: =IF(AND(iniTurma!G$2<>"",iniTurma!G44<>""),(iniTurma!G44-iniTurma!G$1)/iniTurma!G$2,"") ->  | G44: =IF(AND(iniTurma!H$2<>"",iniTurma!H44<>""),(iniTurma!H44-iniTurma!H$1)/iniTurma!H$2,"") ->  | H44: =IF(AND(iniTurma!I$2<>"",iniTurma!I44<>""),(iniTurma!I44-iniTurma!I$1)/iniTurma!I$2,"") -> 
A45: =IF(iniTurma!B45<>"",iniTurma!B45,"") ->  | B45: =iniTurma!A45 -> 42 | C45: =IF(iniTurma!C45<>"",iniTurma!C45,"") ->  | D45: =IF(iniTurma!D45<>"",iniTurma!D45,"") ->  | E45: =IF(AND(iniTurma!F$2<>"",iniTurma!F45<>""),(iniTurma!F45-iniTurma!F$1)/iniTurma!F$2,"") ->  | F45: =IF(AND(iniTurma!G$2<>"",iniTurma!G45<>""),(iniTurma!G45-iniTurma!G$1)/iniTurma!G$2,"") ->  | G45: =IF(AND(iniTurma!H$2<>"",iniTurma!H45<>""),(iniTurma!H45-iniTurma!H$1)/iniTurma!H$2,"") ->  | H45: =IF(AND(iniTurma!I$2<>"",iniTurma!I45<>""),(iniTurma!I45-iniTurma!I$1)/iniTurma!I$2,"") -> 
A46: =IF(iniTurma!B46<>"",iniTurma!B46,"") ->  | B46: =iniTurma!A46 -> 43 | C46: =IF(iniTurma!C46<>"",iniTurma!C46,"") ->  | D46: =IF(iniTurma!D46<>"",iniTurma!D46,"") ->  | E46: =IF(AND(iniTurma!F$2<>"",iniTurma!F46<>""),(iniTurma!F46-iniTurma!F$1)/iniTurma!F$2,"") ->  | F46: =IF(AND(iniTurma!G$2<>"",iniTurma!G46<>""),(iniTurma!G46-iniTurma!G$1)/iniTurma!G$2,"") ->  | G46: =IF(AND(iniTurma!H$2<>"",iniTurma!H46<>""),(iniTurma!H46-iniTurma!H$1)/iniTurma!H$2,"") ->  | H46: =IF(AND(iniTurma!I$2<>"",iniTurma!I46<>""),(iniTurma!I46-iniTurma!I$1)/iniTurma!I$2,"") -> 
A47: =IF(iniTurma!B47<>"",iniTurma!B47,"") ->  | B47: =iniTurma!A47 -> 44 | C47: =IF(iniTurma!C47<>"",iniTurma!C47,"") ->  | D47: =IF(iniTurma!D47<>"",iniTurma!D47,"") ->  | E47: =IF(AND(iniTurma!F$2<>"",iniTurma!F47<>""),(iniTurma!F47-iniTurma!F$1)/iniTurma!F$2,"") ->  | F47: =IF(AND(iniTurma!G$2<>"",iniTurma!G47<>""),(iniTurma!G47-iniTurma!G$1)/iniTurma!G$2,"") ->  | G47: =IF(AND(iniTurma!H$2<>"",iniTurma!H47<>""),(iniTurma!H47-iniTurma!H$1)/iniTurma!H$2,"") ->  | H47: =IF(AND(iniTurma!I$2<>"",iniTurma!I47<>""),(iniTurma!I47-iniTurma!I$1)/iniTurma!I$2,"") -> 
A48: =IF(iniTurma!B48<>"",iniTurma!B48,"") ->  | B48: =iniTurma!A48 -> 45 | C48: =IF(iniTurma!C48<>"",iniTurma!C48,"") ->  | D48: =IF(iniTurma!D48<>"",iniTurma!D48,"") ->  | E48: =IF(AND(iniTurma!F$2<>"",iniTurma!F48<>""),(iniTurma!F48-iniTurma!F$1)/iniTurma!F$2,"") ->  | F48: =IF(AND(iniTurma!G$2<>"",iniTurma!G48<>""),(iniTurma!G48-iniTurma!G$1)/iniTurma!G$2,"") ->  | G48: =IF(AND(iniTurma!H$2<>"",iniTurma!H48<>""),(iniTurma!H48-iniTurma!H$1)/iniTurma!H$2,"") ->  | H48: =IF(AND(iniTurma!I$2<>"",iniTurma!I48<>""),(iniTurma!I48-iniTurma!I$1)/iniTurma!I$2,"") -> 
A49: =IF(iniTurma!B49<>"",iniTurma!B49,"") ->  | B49: =iniTurma!A49 -> 46 | C49: =IF(iniTurma!C49<>"",iniTurma!C49,"") ->  | D49: =IF(iniTurma!D49<>"",iniTurma!D49,"") ->  | E49: =IF(AND(iniTurma!F$2<>"",iniTurma!F49<>""),(iniTurma!F49-iniTurma!F$1)/iniTurma!F$2,"") ->  | F49: =IF(AND(iniTurma!G$2<>"",iniTurma!G49<>""),(iniTurma!G49-iniTurma!G$1)/iniTurma!G$2,"") ->  | G49: =IF(AND(iniTurma!H$2<>"",iniTurma!H49<>""),(iniTurma!H49-iniTurma!H$1)/iniTurma!H$2,"") ->  | H49: =IF(AND(iniTurma!I$2<>"",iniTurma!I49<>""),(iniTurma!I49-iniTurma!I$1)/iniTurma!I$2,"") -> 
A50: =IF(iniTurma!B50<>"",iniTurma!B50,"") ->  | B50: =iniTurma!A50 -> 47 | C50: =IF(iniTurma!C50<>"",iniTurma!C50,"") ->  | D50: =IF(iniTurma!D50<>"",iniTurma!D50,"") ->  | E50: =IF(AND(iniTurma!F$2<>"",iniTurma!F50<>""),(iniTurma!F50-iniTurma!F$1)/iniTurma!F$2,"") ->  | F50: =IF(AND(iniTurma!G$2<>"",iniTurma!G50<>""),(iniTurma!G50-iniTurma!G$1)/iniTurma!G$2,"") ->  | G50: =IF(AND(iniTurma!H$2<>"",iniTurma!H50<>""),(iniTurma!H50-iniTurma!H$1)/iniTurma!H$2,"") ->  | H50: =IF(AND(iniTurma!I$2<>"",iniTurma!I50<>""),(iniTurma!I50-iniTurma!I$1)/iniTurma!I$2,"") -> 
A51: =IF(iniTurma!B51<>"",iniTurma!B51,"") ->  | B51: =iniTurma!A51 -> 48 | C51: =IF(iniTurma!C51<>"",iniTurma!C51,"") ->  | D51: =IF(iniTurma!D51<>"",iniTurma!D51,"") ->  | E51: =IF(AND(iniTurma!F$2<>"",iniTurma!F51<>""),(iniTurma!F51-iniTurma!F$1)/iniTurma!F$2,"") ->  | F51: =IF(AND(iniTurma!G$2<>"",iniTurma!G51<>""),(iniTurma!G51-iniTurma!G$1)/iniTurma!G$2,"") ->  | G51: =IF(AND(iniTurma!H$2<>"",iniTurma!H51<>""),(iniTurma!H51-iniTurma!H$1)/iniTurma!H$2,"") ->  | H51: =IF(AND(iniTurma!I$2<>"",iniTurma!I51<>""),(iniTurma!I51-iniTurma!I$1)/iniTurma!I$2,"") -> 
A52: =IF(iniTurma!B52<>"",iniTurma!B52,"") ->  | B52: =iniTurma!A52 -> 49 | C52: =IF(iniTurma!C52<>"",iniTurma!C52,"") ->  | D52: =IF(iniTurma!D52<>"",iniTurma!D52,"") ->  | E52: =IF(AND(iniTurma!F$2<>"",iniTurma!F52<>""),(iniTurma!F52-iniTurma!F$1)/iniTurma!F$2,"") ->  | F52: =IF(AND(iniTurma!G$2<>"",iniTurma!G52<>""),(iniTurma!G52-iniTurma!G$1)/iniTurma!G$2,"") ->  | G52: =IF(AND(iniTurma!H$2<>"",iniTurma!H52<>""),(iniTurma!H52-iniTurma!H$1)/iniTurma!H$2,"") ->  | H52: =IF(AND(iniTurma!I$2<>"",iniTurma!I52<>""),(iniTurma!I52-iniTurma!I$1)/iniTurma!I$2,"") -> 
A53: =IF(iniTurma!B53<>"",iniTurma!B53,"") ->  | B53: =iniTurma!A53 -> 50 | C53: =IF(iniTurma!C53<>"",iniTurma!C53,"") ->  | D53: =IF(iniTurma!D53<>"",iniTurma!D53,"") ->  | E53: =IF(AND(iniTurma!F$2<>"",iniTurma!F53<>""),(iniTurma!F53-iniTurma!F$1)/iniTurma!F$2,"") ->  | F53: =IF(AND(iniTurma!G$2<>"",iniTurma!G53<>""),(iniTurma!G53-iniTurma!G$1)/iniTurma!G$2,"") ->  | G53: =IF(AND(iniTurma!H$2<>"",iniTurma!H53<>""),(iniTurma!H53-iniTurma!H$1)/iniTurma!H$2,"") ->  | H53: =IF(AND(iniTurma!I$2<>"",iniTurma!I53<>""),(iniTurma!I53-iniTurma!I$1)/iniTurma!I$2,"") -> 

Sheet fimTurma
B1: Ano: | C1: =IF(iniTurma!C1<>"",iniTurma!C1,"") -> 2 | E1: Média: | F1: =IF(COUNTA(F4:F53)>0,AVERAGE(F4:F53),"") -> 14.91666667 | G1: =IF(COUNTA(G4:G53)>0,AVERAGE(G4:G53),"") -> 11.75 | H1: 7.763636364 | I1: 34.52727273
A2: =COUNTIF(B4:B53,"x") -> 1 | B2: Turma: | C2: =IF(iniTurma!C2<>"",iniTurma!C2,"") -> A | E2: Desvio-padrão: | F2: =IF(COUNTA(F4:F53)>0,_xlfn.STDEV.P(F4:F53),"") -> 1.320248293 | G2: =IF(COUNTA(G4:G53)>0,_xlfn.STDEV.P(G4:G53),"") -> 1.299038106 | H2: 0.9660347512 | I2: 3.076624747
A3: ID Aluno | B3: =_xlfn.CONCAT("Ver: ",COUNTIF(B4:B53,"x")) -> Ver: 1 | C3: Nome | D3: Idade | E3: Data | F3: =iniTurma!F3 -> Agilidade | G3: =iniTurma!G3 -> Shuttle run 20m | H3: =iniTurma!H3 -> Força de preensão | I3: =iniTurma!I3 -> Salto horizontal
A4: 1 | C4: =IF(iniTurma!C4<>"",iniTurma!C4,"") -> Micas | D4: 13 | E4: 2025-06-08 | F4: 15 | G4: 12 | H4: 6.5 | I4: 35
A5: =A4+1 -> 2 | C5: =IF(iniTurma!C5<>"",iniTurma!C5,"") -> Tecas | D5: 12 | E5: 2025-06-08 | F5: 14 | G5: 12 | H5: 7
A6: =A5+1 -> 3 | C6: =IF(iniTurma!C6<>"",iniTurma!C6,"") -> Lecas | D6: 15 | E6: 2025-06-08 | F6: 13 | G6: 13 | H6: 8 | I6: 34
A7: 4 | B7: x | C7: =IF(iniTurma!C7<>"",iniTurma!C7,"") -> Becas | D7: 8 | E7: 2025-06-08 | F7: 14 | G7: 11 | I7: 39
A8: 5 | C8: =IF(iniTurma!C8<>"",iniTurma!C8,"") -> Nocas | D8: 11 | E8: 2025-06-08 | F8: 15 | G8: 14 | H8: 7.2 | I8: 41
A9: 6 | C9: =IF(iniTurma!C9<>"",iniTurma!C9,"") -> Françoise Hardy | D9: 13 | E9: 2025-06-08 | F9: 16 | G9: 12 | H9: 8.4 | I9: 36
A10: 7 | C10: =IF(iniTurma!C10<>"",iniTurma!C10,"") -> Asterix | D10: 16 | E10: 2025-06-09 | F10: 17 | G10: 10 | H10: 8.1 | I10: 32
A11: 8 | C11: =IF(iniTurma!C11<>"",iniTurma!C11,"") -> Obelix | D11: 14 | E11: 2025-06-09 | F11: 13 | G11: 9 | H11: 7 | I11: 30
A12: 9 | C12: =IF(iniTurma!C12<>"",iniTurma!C12,"") -> Ideiafix | D12: 14 | E12: 2025-06-09 | F12: 14 | G12: 11 | H12: 7.2 | I12: 32.2
A13: 10 | C13: =IF(iniTurma!C13<>"",iniTurma!C13,"") -> Sylvie Vartan | D13: 14 | E13: 2025-06-09 | F13: 15 | G13: 12 | H13: 8.3 | I13: 35.1
A14: 11 | C14: =IF(iniTurma!C14<>"",iniTurma!C14,"") -> Carlos Lopes | D14: 14 | E14: 2025-06-09 | F14: 16 | G14: 12 | H14: 10.2 | I14: 33.3
A15: 12 | C15: =IF(iniTurma!C15<>"",iniTurma!C15,"") -> Rosa Mota | D15: 14 | E15: 2025-06-09 | F15: 17 | G15: 13 | H15: 7.5 | I15: 32.2
A16: 13 | C16: =IF(iniTurma!C16<>"",iniTurma!C16,"") -> 
A17: 14 | C17: =IF(iniTurma!C17<>"",iniTurma!C17,"") -> 
A18: 15 | C18: =IF(iniTurma!C18<>"",iniTurma!C18,"") -> 
A19: 16 | C19: =IF(iniTurma!C19<>"",iniTurma!C19,"") -> 
A20: 17 | C20: =IF(iniTurma!C20<>"",iniTurma!C20,"") -> 
A21: 18 | C21: =IF(iniTurma!C21<>"",iniTurma!C21,"") -> 
A22: 19 | C22: =IF(iniTurma!C22<>"",iniTurma!C22,"") -> 
A23: 20 | C23: =IF(iniTurma!C23<>"",iniTurma!C23,"") -> 
A24: 21 | C24: =IF(iniTurma!C24<>"",iniTurma!C24,"") -> 
A25: 22 | C25: =IF(iniTurma!C25<>"",iniTurma!C25,"") -> 
A26: 23 | C26: =IF(iniTurma!C26<>"",iniTurma!C26,"") -> 
A27: 24 | C27: =IF(iniTurma!C27<>"",iniTurma!C27,"") -> 
A28: 25 | C28: =IF(iniTurma!C28<>"",iniTurma!C28,"") -> 
A29: 26 | C29: =IF(iniTurma!C29<>"",iniTurma!C29,"") -> 
A30: 27 | C30: =IF(iniTurma!C30<>"",iniTurma!C30,"") -> 
A31: 28 | C31: =IF(iniTurma!C31<>"",iniTurma!C31,"") -> 
A32: 29 | C32: =IF(iniTurma!C32<>"",iniTurma!C32,"") -> 
A33: 30 | C33: =IF(iniTurma!C33<>"",iniTurma!C33,"") -> 
A34: 31 | C34: =IF(iniTurma!C34<>"",iniTurma!C34,"") -> 
A35: 32 | C35: =IF(iniTurma!C35<>"",iniTurma!C35,"") -> 
A36: 33 | C36: =IF(iniTurma!C36<>"",iniTurma!C36,"") -> 
A37: 34 | C37: =IF(iniTurma!C37<>"",iniTurma!C37,"") -> 
A38: 35 | C38: =IF(iniTurma!C38<>"",iniTurma!C38,"") -> 
A39: 36 | C39: =IF(iniTurma!C39<>"",iniTurma!C39,"") -> 
A40: 37 | C40: =IF(iniTurma!C40<>"",iniTurma!C40,"") -> 
A41: 38 | C41: =IF(iniTurma!C41<>"",iniTurma!C41,"") -> 
A42: 39 | C42: =IF(iniTurma!C42<>"",iniTurma!C42,"") -> 
A43: 40 | C43: =IF(iniTurma!C43<>"",iniTurma!C43,"") -> 
A44: 41 | C44: =IF(iniTurma!C44<>"",iniTurma!C44,"") -> 
A45: 42 | C45: =IF(iniTurma!C45<>"",iniTurma!C45,"") -> 
A46: 43 | C46: =IF(iniTurma!C46<>"",iniTurma!C46,"") -> 
A47: 44 | C47: =IF(iniTurma!C47<>"",iniTurma!C47,"") -> 
A48: 45 | C48: =IF(iniTurma!C48<>"",iniTurma!C48,"") -> 
A49: 46 | C49: =IF(iniTurma!C49<>"",iniTurma!C49,"") -> 
A50: 47 | C50: =IF(iniTurma!C50<>"",iniTurma!C50,"") -> 
A51: 48 | C51: =IF(iniTurma!C51<>"",iniTurma!C51,"") -> 
A52: 49 | C52: =IF(iniTurma!C52<>"",iniTurma!C52,"") -> 
A53: 50 | C53: =IF(iniTurma!C53<>"",iniTurma!C53,"") -> 

Sheet fimRelatório
A1: RELATÓRIO INDIVIDUAL PREFIT BATTERY
A2: =IF(fimTurma!A2=1,VLOOKUP("x",fimTurma!B$4:M$53,2,0),"") -> Becas
A3: =IF(fimTurma!A2=1,_xlfn.CONCAT(TEXT(VLOOKUP("x",fimTurma!B$4:M$53,4,0),"dd-mm-aaaa")," | ",fimTurma!C1,"º ano"," | ",fimTurma!C2),"") -> 08-06-2025 | 2º ano | A
B5: Resultado | D5: Média | F5: Mínimo | H5: Máximo
B6: da criança | D6: da turma | F6: da turma | H6: da turma
A7: =iniRelatório!A7 -> APTIDÃO MOTORA
A8: =IF(fimTurma!A2=1,IFERROR(VLOOKUP(1,fimAuxiliar!L3:Q3,2,0),""),"") -> Agilidade | B8: =IF(fimTurma!A2=1,IFERROR(VLOOKUP(1,fimAuxiliar!L3:Q3,3,0),0),0) -> 14 | D8: =IF(fimTurma!A2=1,IFERROR(VLOOKUP(1,fimAuxiliar!L3:Q3,4,0),0),0) -> 14.91666667 | F8: =IF(fimTurma!A2=1,IFERROR(VLOOKUP(1,fimAuxiliar!L3:Q3,5,0),0),0) -> 13 | H8: =IF(fimTurma!A2=1,IFERROR(VLOOKUP(1,fimAuxiliar!L3:Q3,6,0),0),0) -> 17
A12: =iniRelatório!A12 -> APTIDÃO CARDIORRESPIRATÓRIA
A13: =IF(fimTurma!A2=1,IFERROR(VLOOKUP(1,fimAuxiliar!L4:Q4,2,0),""),"") -> Shuttle run 20m | B13: =IF(fimTurma!A2=1,IFERROR(VLOOKUP(1,fimAuxiliar!L4:Q4,3,0),0),0) -> 11 | D13: =IF(fimTurma!A2=1,IFERROR(VLOOKUP(1,fimAuxiliar!L4:Q4,4,0),0),0) -> 11.75 | F13: =IF(fimTurma!A2=1,IFERROR(VLOOKUP(1,fimAuxiliar!L4:Q4,5,0),0),0) -> 9 | H13: =IF(fimTurma!A2=1,IFERROR(VLOOKUP(1,fimAuxiliar!L4:Q4,6,0),0),0) -> 14
A17: =iniRelatório!A17 -> APTIDÃO MOTORA
A18: =IF(fimTurma!A2=1,IFERROR(VLOOKUP(1,fimAuxiliar!L5:Q6,2,0),""),"") -> Força de preensão | B18: =IF(fimTurma!A2=1,IFERROR(VLOOKUP(1,fimAuxiliar!L5:Q6,3,0),0),0) -> 0 | D18: =IF(fimTurma!A2=1,IFERROR(VLOOKUP(1,fimAuxiliar!L5:Q6,4,0),0),0) -> 7.763636364 | F18: =IF(fimTurma!A2=1,IFERROR(VLOOKUP(1,fimAuxiliar!L5:Q6,5,0),0),0) -> 6.5 | H18: =IF(fimTurma!A2=1,IFERROR(VLOOKUP(1,fimAuxiliar!L5:Q6,6,0),0),0) -> 10.2
A20: =IF(fimTurma!A2=1,IFERROR(VLOOKUP(2,fimAuxiliar!L5:Q6,2,0),""),"") -> Salto horizontal | B20: =IF(fimTurma!A2=1,IFERROR(VLOOKUP(2,fimAuxiliar!L5:Q6,3,0),0),0) -> 39 | D20: =IF(fimTurma!A2=1,IFERROR(VLOOKUP(2,fimAuxiliar!L5:Q6,4,0),0),0) -> 34.52727273 | F20: =IF(fimTurma!A2=1,IFERROR(VLOOKUP(2,fimAuxiliar!L5:Q6,5,0),0),0) -> 30 | H20: =IF(fimTurma!A2=1,IFERROR(VLOOKUP(2,fimAuxiliar!L5:Q6,6,0),0),0) -> 41
A25: Perfil multivariado

Sheet fimScore Z
A3: =fimTurma!B3 -> Ver: 1 | B3: =fimTurma!A3 -> ID Aluno | C3: =fimTurma!C3 -> Nome | D3: Idade | E3: =fimTurma!F3 -> Agilidade | F3: =fimTurma!G3 -> Shuttle run 20m | G3: =fimTurma!H3 -> Força de preensão | H3: =fimTurma!I3 -> Salto horizontal
A4: =IF(fimTurma!B4<>"",fimTurma!B4,"") ->  | B4: =fimTurma!A4 -> 1 | C4: =IF(fimTurma!C4<>"",fimTurma!C4,"") -> Micas | D4: =IF(fimTurma!D4<>"",fimTurma!D4,"") -> 13 | E4: =IF(AND(fimTurma!F$2<>"",fimTurma!F4<>""),(fimTurma!F4-fimTurma!F$1)/fimTurma!F$2,"") -> 0.06311944031 | F4: =IF(AND(fimTurma!G$2<>"",fimTurma!G4<>""),(fimTurma!G4-fimTurma!G$1)/fimTurma!G$2,"") -> 0.1924500897 | G4: =IF(AND(fimTurma!H$2<>"",fimTurma!H4<>""),(fimTurma!H4-fimTurma!H$1)/fimTurma!H$2,"") -> -1.308065121 | H4: =IF(AND(fimTurma!I$2<>"",fimTurma!I4<>""),(fimTurma!I4-fimTurma!I$1)/fimTurma!I$2,"") -> 0.1536512612
A5: =IF(fimTurma!B5<>"",fimTurma!B5,"") ->  | B5: =fimTurma!A5 -> 2 | C5: =IF(fimTurma!C5<>"",fimTurma!C5,"") -> Tecas | D5: =IF(fimTurma!D5<>"",fimTurma!D5,"") -> 12 | E5: =IF(AND(fimTurma!F$2<>"",fimTurma!F5<>""),(fimTurma!F5-fimTurma!F$1)/fimTurma!F$2,"") -> -0.6943138434 | F5: =IF(AND(fimTurma!G$2<>"",fimTurma!G5<>""),(fimTurma!G5-fimTurma!G$1)/fimTurma!G$2,"") -> 0.1924500897 | G5: =IF(AND(fimTurma!H$2<>"",fimTurma!H5<>""),(fimTurma!H5-fimTurma!H$1)/fimTurma!H$2,"") -> -0.7904853968 | H5: =IF(AND(fimTurma!I$2<>"",fimTurma!I5<>""),(fimTurma!I5-fimTurma!I$1)/fimTurma!I$2,"") -> 
A6: =IF(fimTurma!B6<>"",fimTurma!B6,"") ->  | B6: =fimTurma!A6 -> 3 | C6: =IF(fimTurma!C6<>"",fimTurma!C6,"") -> Lecas | D6: =IF(fimTurma!D6<>"",fimTurma!D6,"") -> 15 | E6: =IF(AND(fimTurma!F$2<>"",fimTurma!F6<>""),(fimTurma!F6-fimTurma!F$1)/fimTurma!F$2,"") -> -1.451747127 | F6: =IF(AND(fimTurma!G$2<>"",fimTurma!G6<>""),(fimTurma!G6-fimTurma!G$1)/fimTurma!G$2,"") -> 0.9622504486 | G6: =IF(AND(fimTurma!H$2<>"",fimTurma!H6<>""),(fimTurma!H6-fimTurma!H$1)/fimTurma!H$2,"") -> 0.2446740514 | H6: =IF(AND(fimTurma!I$2<>"",fimTurma!I6<>""),(fimTurma!I6-fimTurma!I$1)/fimTurma!I$2,"") -> -0.1713802529
A7: =IF(fimTurma!B7<>"",fimTurma!B7,"") -> x | B7: =fimTurma!A7 -> 4 | C7: =IF(fimTurma!C7<>"",fimTurma!C7,"") -> Becas | D7: =IF(fimTurma!D7<>"",fimTurma!D7,"") -> 8 | E7: =IF(AND(fimTurma!F$2<>"",fimTurma!F7<>""),(fimTurma!F7-fimTurma!F$1)/fimTurma!F$2,"") -> -0.6943138434 | F7: =IF(AND(fimTurma!G$2<>"",fimTurma!G7<>""),(fimTurma!G7-fimTurma!G$1)/fimTurma!G$2,"") -> -0.5773502692 | G7: =IF(AND(fimTurma!H$2<>"",fimTurma!H7<>""),(fimTurma!H7-fimTurma!H$1)/fimTurma!H$2,"") ->  | H7: =IF(AND(fimTurma!I$2<>"",fimTurma!I7<>""),(fimTurma!I7-fimTurma!I$1)/fimTurma!I$2,"") -> 1.453777318
A8: =IF(fimTurma!B8<>"",fimTurma!B8,"") ->  | B8: =fimTurma!A8 -> 5 | C8: =IF(fimTurma!C8<>"",fimTurma!C8,"") -> Nocas | D8: =IF(fimTurma!D8<>"",fimTurma!D8,"") -> 11 | E8: =IF(AND(fimTurma!F$2<>"",fimTurma!F8<>""),(fimTurma!F8-fimTurma!F$1)/fimTurma!F$2,"") -> 0.06311944031 | F8: =IF(AND(fimTurma!G$2<>"",fimTurma!G8<>""),(fimTurma!G8-fimTurma!G$1)/fimTurma!G$2,"") -> 1.732050808 | G8: =IF(AND(fimTurma!H$2<>"",fimTurma!H8<>""),(fimTurma!H8-fimTurma!H$1)/fimTurma!H$2,"") -> -0.5834535072 | H8: =IF(AND(fimTurma!I$2<>"",fimTurma!I8<>""),(fimTurma!I8-fimTurma!I$1)/fimTurma!I$2,"") -> 2.103840346
A9: =IF(fimTurma!B9<>"",fimTurma!B9,"") ->  | B9: =fimTurma!A9 -> 6 | C9: =IF(fimTurma!C9<>"",fimTurma!C9,"") -> Françoise Hardy | D9: =IF(fimTurma!D9<>"",fimTurma!D9,"") -> 13 | E9: =IF(AND(fimTurma!F$2<>"",fimTurma!F9<>""),(fimTurma!F9-fimTurma!F$1)/fimTurma!F$2,"") -> 0.820552724 | F9: =IF(AND(fimTurma!G$2<>"",fimTurma!G9<>""),(fimTurma!G9-fimTurma!G$1)/fimTurma!G$2,"") -> 0.1924500897 | G9: =IF(AND(fimTurma!H$2<>"",fimTurma!H9<>""),(fimTurma!H9-fimTurma!H$1)/fimTurma!H$2,"") -> 0.6587378307 | H9: =IF(AND(fimTurma!I$2<>"",fimTurma!I9<>""),(fimTurma!I9-fimTurma!I$1)/fimTurma!I$2,"") -> 0.4786827754
A10: =IF(fimTurma!B10<>"",fimTurma!B10,"") ->  | B10: =fimTurma!A10 -> 7 | C10: =IF(fimTurma!C10<>"",fimTurma!C10,"") -> Asterix | D10: =IF(fimTurma!D10<>"",fimTurma!D10,"") -> 16 | E10: =IF(AND(fimTurma!F$2<>"",fimTurma!F10<>""),(fimTurma!F10-fimTurma!F$1)/fimTurma!F$2,"") -> 1.577986008 | F10: =IF(AND(fimTurma!G$2<>"",fimTurma!G10<>""),(fimTurma!G10-fimTurma!G$1)/fimTurma!G$2,"") -> -1.347150628 | G10: =IF(AND(fimTurma!H$2<>"",fimTurma!H10<>""),(fimTurma!H10-fimTurma!H$1)/fimTurma!H$2,"") -> 0.3481899962 | H10: =IF(AND(fimTurma!I$2<>"",fimTurma!I10<>""),(fimTurma!I10-fimTurma!I$1)/fimTurma!I$2,"") -> -0.8214432812
A11: =IF(fimTurma!B11<>"",fimTurma!B11,"") ->  | B11: =fimTurma!A11 -> 8 | C11: =IF(fimTurma!C11<>"",fimTurma!C11,"") -> Obelix | D11: =IF(fimTurma!D11<>"",fimTurma!D11,"") -> 14 | E11: =IF(AND(fimTurma!F$2<>"",fimTurma!F11<>""),(fimTurma!F11-fimTurma!F$1)/fimTurma!F$2,"") -> -1.451747127 | F11: =IF(AND(fimTurma!G$2<>"",fimTurma!G11<>""),(fimTurma!G11-fimTurma!G$1)/fimTurma!G$2,"") -> -2.116950987 | G11: =IF(AND(fimTurma!H$2<>"",fimTurma!H11<>""),(fimTurma!H11-fimTurma!H$1)/fimTurma!H$2,"") -> -0.7904853968 | H11: =IF(AND(fimTurma!I$2<>"",fimTurma!I11<>""),(fimTurma!I11-fimTurma!I$1)/fimTurma!I$2,"") -> -1.471506309
A12: =IF(fimTurma!B12<>"",fimTurma!B12,"") ->  | B12: =fimTurma!A12 -> 9 | C12: =IF(fimTurma!C12<>"",fimTurma!C12,"") -> Ideiafix | D12: =IF(fimTurma!D12<>"",fimTurma!D12,"") -> 14 | E12: =IF(AND(fimTurma!F$2<>"",fimTurma!F12<>""),(fimTurma!F12-fimTurma!F$1)/fimTurma!F$2,"") -> -0.6943138434 | F12: =IF(AND(fimTurma!G$2<>"",fimTurma!G12<>""),(fimTurma!G12-fimTurma!G$1)/fimTurma!G$2,"") -> -0.5773502692 | G12: =IF(AND(fimTurma!H$2<>"",fimTurma!H12<>""),(fimTurma!H12-fimTurma!H$1)/fimTurma!H$2,"") -> -0.5834535072 | H12: =IF(AND(fimTurma!I$2<>"",fimTurma!I12<>""),(fimTurma!I12-fimTurma!I$1)/fimTurma!I$2,"") -> -0.7564369784
A13: =IF(fimTurma!B13<>"",fimTurma!B13,"") ->  | B13: =fimTurma!A13 -> 10 | C13: =IF(fimTurma!C13<>"",fimTurma!C13,"") -> Sylvie Vartan | D13: =IF(fimTurma!D13<>"",fimTurma!D13,"") -> 14 | E13: =IF(AND(fimTurma!F$2<>"",fimTurma!F13<>""),(fimTurma!F13-fimTurma!F$1)/fimTurma!F$2,"") -> 0.06311944031 | F13: =IF(AND(fimTurma!G$2<>"",fimTurma!G13<>""),(fimTurma!G13-fimTurma!G$1)/fimTurma!G$2,"") -> 0.1924500897 | G13: =IF(AND(fimTurma!H$2<>"",fimTurma!H13<>""),(fimTurma!H13-fimTurma!H$1)/fimTurma!H$2,"") -> 0.5552218859 | H13: =IF(AND(fimTurma!I$2<>"",fimTurma!I13<>""),(fimTurma!I13-fimTurma!I$1)/fimTurma!I$2,"") -> 0.1861544126
A14: =IF(fimTurma!B14<>"",fimTurma!B14,"") ->  | B14: =fimTurma!A14 -> 11 | C14: =IF(fimTurma!C14<>"",fimTurma!C14,"") -> Carlos Lopes | D14: =IF(fimTurma!D14<>"",fimTurma!D14,"") -> 14 | E14: =IF(AND(fimTurma!F$2<>"",fimTurma!F14<>""),(fimTurma!F14-fimTurma!F$1)/fimTurma!F$2,"") -> 0.820552724 | F14: =IF(AND(fimTurma!G$2<>"",fimTurma!G14<>""),(fimTurma!G14-fimTurma!G$1)/fimTurma!G$2,"") -> 0.1924500897 | G14: =IF(AND(fimTurma!H$2<>"",fimTurma!H14<>""),(fimTurma!H14-fimTurma!H$1)/fimTurma!H$2,"") -> 2.522024837 | H14: =IF(AND(fimTurma!I$2<>"",fimTurma!I14<>""),(fimTurma!I14-fimTurma!I$1)/fimTurma!I$2,"") -> -0.3989023128
A15: =IF(fimTurma!B15<>"",fimTurma!B15,"") ->  | B15: =fimTurma!A15 -> 12 | C15: =IF(fimTurma!C15<>"",fimTurma!C15,"") -> Rosa Mota | D15: =IF(fimTurma!D15<>"",fimTurma!D15,"") -> 14 | E15: =IF(AND(fimTurma!F$2<>"",fimTurma!F15<>""),(fimTurma!F15-fimTurma!F$1)/fimTurma!F$2,"") -> 1.577986008 | F15: =IF(AND(fimTurma!G$2<>"",fimTurma!G15<>""),(fimTurma!G15-fimTurma!G$1)/fimTurma!G$2,"") -> 0.9622504486 | G15: =IF(AND(fimTurma!H$2<>"",fimTurma!H15<>""),(fimTurma!H15-fimTurma!H$1)/fimTurma!H$2,"") -> -0.2729056727 | H15: =IF(AND(fimTurma!I$2<>"",fimTurma!I15<>""),(fimTurma!I15-fimTurma!I$1)/fimTurma!I$2,"") -> -0.7564369784
A16: =IF(fimTurma!B16<>"",fimTurma!B16,"") ->  | B16: =fimTurma!A16 -> 13 | C16: =IF(fimTurma!C16<>"",fimTurma!C16,"") ->  | D16: =IF(fimTurma!D16<>"",fimTurma!D16,"") ->  | E16: =IF(AND(fimTurma!F$2<>"",fimTurma!F16<>""),(fimTurma!F16-fimTurma!F$1)/fimTurma!F$2,"") ->  | F16: =IF(AND(fimTurma!G$2<>"",fimTurma!G16<>""),(fimTurma!G16-fimTurma!G$1)/fimTurma!G$2,"") ->  | G16: =IF(AND(fimTurma!H$2<>"",fimTurma!H16<>""),(fimTurma!H16-fimTurma!H$1)/fimTurma!H$2,"") ->  | H16: =IF(AND(fimTurma!I$2<>"",fimTurma!I16<>""),(fimTurma!I16-fimTurma!I$1)/fimTurma!I$2,"") -> 
A17: =IF(fimTurma!B17<>"",fimTurma!B17,"") ->  | B17: =fimTurma!A17 -> 14 | C17: =IF(fimTurma!C17<>"",fimTurma!C17,"") ->  | D17: =IF(fimTurma!D17<>"",fimTurma!D17,"") ->  | E17: =IF(AND(fimTurma!F$2<>"",fimTurma!F17<>""),(fimTurma!F17-fimTurma!F$1)/fimTurma!F$2,"") ->  | F17: =IF(AND(fimTurma!G$2<>"",fimTurma!G17<>""),(fimTurma!G17-fimTurma!G$1)/fimTurma!G$2,"") ->  | G17: =IF(AND(fimTurma!H$2<>"",fimTurma!H17<>""),(fimTurma!H17-fimTurma!H$1)/fimTurma!H$2,"") ->  | H17: =IF(AND(fimTurma!I$2<>"",fimTurma!I17<>""),(fimTurma!I17-fimTurma!I$1)/fimTurma!I$2,"") -> 
A18: =IF(fimTurma!B18<>"",fimTurma!B18,"") ->  | B18: =fimTurma!A18 -> 15 | C18: =IF(fimTurma!C18<>"",fimTurma!C18,"") ->  | D18: =IF(fimTurma!D18<>"",fimTurma!D18,"") ->  | E18: =IF(AND(fimTurma!F$2<>"",fimTurma!F18<>""),(fimTurma!F18-fimTurma!F$1)/fimTurma!F$2,"") ->  | F18: =IF(AND(fimTurma!G$2<>"",fimTurma!G18<>""),(fimTurma!G18-fimTurma!G$1)/fimTurma!G$2,"") ->  | G18: =IF(AND(fimTurma!H$2<>"",fimTurma!H18<>""),(fimTurma!H18-fimTurma!H$1)/fimTurma!H$2,"") ->  | H18: =IF(AND(fimTurma!I$2<>"",fimTurma!I18<>""),(fimTurma!I18-fimTurma!I$1)/fimTurma!I$2,"") -> 
A19: =IF(fimTurma!B19<>"",fimTurma!B19,"") ->  | B19: =fimTurma!A19 -> 16 | C19: =IF(fimTurma!C19<>"",fimTurma!C19,"") ->  | D19: =IF(fimTurma!D19<>"",fimTurma!D19,"") ->  | E19: =IF(AND(fimTurma!F$2<>"",fimTurma!F19<>""),(fimTurma!F19-fimTurma!F$1)/fimTurma!F$2,"") ->  | F19: =IF(AND(fimTurma!G$2<>"",fimTurma!G19<>""),(fimTurma!G19-fimTurma!G$1)/fimTurma!G$2,"") ->  | G19: =IF(AND(fimTurma!H$2<>"",fimTurma!H19<>""),(fimTurma!H19-fimTurma!H$1)/fimTurma!H$2,"") ->  | H19: =IF(AND(fimTurma!I$2<>"",fimTurma!I19<>""),(fimTurma!I19-fimTurma!I$1)/fimTurma!I$2,"") -> 
A20: =IF(fimTurma!B20<>"",fimTurma!B20,"") ->  | B20: =fimTurma!A20 -> 17 | C20: =IF(fimTurma!C20<>"",fimTurma!C20,"") ->  | D20: =IF(fimTurma!D20<>"",fimTurma!D20,"") ->  | E20: =IF(AND(fimTurma!F$2<>"",fimTurma!F20<>""),(fimTurma!F20-fimTurma!F$1)/fimTurma!F$2,"") ->  | F20: =IF(AND(fimTurma!G$2<>"",fimTurma!G20<>""),(fimTurma!G20-fimTurma!G$1)/fimTurma!G$2,"") ->  | G20: =IF(AND(fimTurma!H$2<>"",fimTurma!H20<>""),(fimTurma!H20-fimTurma!H$1)/fimTurma!H$2,"") ->  | H20: =IF(AND(fimTurma!I$2<>"",fimTurma!I20<>""),(fimTurma!I20-fimTurma!I$1)/fimTurma!I$2,"") -> 
A21: =IF(fimTurma!B21<>"",fimTurma!B21,"") ->  | B21: =fimTurma!A21 -> 18 | C21: =IF(fimTurma!C21<>"",fimTurma!C21,"") ->  | D21: =IF(fimTurma!D21<>"",fimTurma!D21,"") ->  | E21: =IF(AND(fimTurma!F$2<>"",fimTurma!F21<>""),(fimTurma!F21-fimTurma!F$1)/fimTurma!F$2,"") ->  | F21: =IF(AND(fimTurma!G$2<>"",fimTurma!G21<>""),(fimTurma!G21-fimTurma!G$1)/fimTurma!G$2,"") ->  | G21: =IF(AND(fimTurma!H$2<>"",fimTurma!H21<>""),(fimTurma!H21-fimTurma!H$1)/fimTurma!H$2,"") ->  | H21: =IF(AND(fimTurma!I$2<>"",fimTurma!I21<>""),(fimTurma!I21-fimTurma!I$1)/fimTurma!I$2,"") -> 
A22: =IF(fimTurma!B22<>"",fimTurma!B22,"") ->  | B22: =fimTurma!A22 -> 19 | C22: =IF(fimTurma!C22<>"",fimTurma!C22,"") ->  | D22: =IF(fimTurma!D22<>"",fimTurma!D22,"") ->  | E22: =IF(AND(fimTurma!F$2<>"",fimTurma!F22<>""),(fimTurma!F22-fimTurma!F$1)/fimTurma!F$2,"") ->  | F22: =IF(AND(fimTurma!G$2<>"",fimTurma!G22<>""),(fimTurma!G22-fimTurma!G$1)/fimTurma!G$2,"") ->  | G22: =IF(AND(fimTurma!H$2<>"",fimTurma!H22<>""),(fimTurma!H22-fimTurma!H$1)/fimTurma!H$2,"") ->  | H22: =IF(AND(fimTurma!I$2<>"",fimTurma!I22<>""),(fimTurma!I22-fimTurma!I$1)/fimTurma!I$2,"") -> 
A23: =IF(fimTurma!B23<>"",fimTurma!B23,"") ->  | B23: =fimTurma!A23 -> 20 | C23: =IF(fimTurma!C23<>"",fimTurma!C23,"") ->  | D23: =IF(fimTurma!D23<>"",fimTurma!D23,"") ->  | E23: =IF(AND(fimTurma!F$2<>"",fimTurma!F23<>""),(fimTurma!F23-fimTurma!F$1)/fimTurma!F$2,"") ->  | F23: =IF(AND(fimTurma!G$2<>"",fimTurma!G23<>""),(fimTurma!G23-fimTurma!G$1)/fimTurma!G$2,"") ->  | G23: =IF(AND(fimTurma!H$2<>"",fimTurma!H23<>""),(fimTurma!H23-fimTurma!H$1)/fimTurma!H$2,"") ->  | H23: =IF(AND(fimTurma!I$2<>"",fimTurma!I23<>""),(fimTurma!I23-fimTurma!I$1)/fimTurma!I$2,"") -> 
A24: =IF(fimTurma!B24<>"",fimTurma!B24,"") ->  | B24: =fimTurma!A24 -> 21 | C24: =IF(fimTurma!C24<>"",fimTurma!C24,"") ->  | D24: =IF(fimTurma!D24<>"",fimTurma!D24,"") ->  | E24: =IF(AND(fimTurma!F$2<>"",fimTurma!F24<>""),(fimTurma!F24-fimTurma!F$1)/fimTurma!F$2,"") ->  | F24: =IF(AND(fimTurma!G$2<>"",fimTurma!G24<>""),(fimTurma!G24-fimTurma!G$1)/fimTurma!G$2,"") ->  | G24: =IF(AND(fimTurma!H$2<>"",fimTurma!H24<>""),(fimTurma!H24-fimTurma!H$1)/fimTurma!H$2,"") ->  | H24: =IF(AND(fimTurma!I$2<>"",fimTurma!I24<>""),(fimTurma!I24-fimTurma!I$1)/fimTurma!I$2,"") -> 
A25: =IF(fimTurma!B25<>"",fimTurma!B25,"") ->  | B25: =fimTurma!A25 -> 22 | C25: =IF(fimTurma!C25<>"",fimTurma!C25,"") ->  | D25: =IF(fimTurma!D25<>"",fimTurma!D25,"") ->  | E25: =IF(AND(fimTurma!F$2<>"",fimTurma!F25<>""),(fimTurma!F25-fimTurma!F$1)/fimTurma!F$2,"") ->  | F25: =IF(AND(fimTurma!G$2<>"",fimTurma!G25<>""),(fimTurma!G25-fimTurma!G$1)/fimTurma!G$2,"") ->  | G25: =IF(AND(fimTurma!H$2<>"",fimTurma!H25<>""),(fimTurma!H25-fimTurma!H$1)/fimTurma!H$2,"") ->  | H25: =IF(AND(fimTurma!I$2<>"",fimTurma!I25<>""),(fimTurma!I25-fimTurma!I$1)/fimTurma!I$2,"") -> 
A26: =IF(fimTurma!B26<>"",fimTurma!B26,"") ->  | B26: =fimTurma!A26 -> 23 | C26: =IF(fimTurma!C26<>"",fimTurma!C26,"") ->  | D26: =IF(fimTurma!D26<>"",fimTurma!D26,"") ->  | E26: =IF(AND(fimTurma!F$2<>"",fimTurma!F26<>""),(fimTurma!F26-fimTurma!F$1)/fimTurma!F$2,"") ->  | F26: =IF(AND(fimTurma!G$2<>"",fimTurma!G26<>""),(fimTurma!G26-fimTurma!G$1)/fimTurma!G$2,"") ->  | G26: =IF(AND(fimTurma!H$2<>"",fimTurma!H26<>""),(fimTurma!H26-fimTurma!H$1)/fimTurma!H$2,"") ->  | H26: =IF(AND(fimTurma!I$2<>"",fimTurma!I26<>""),(fimTurma!I26-fimTurma!I$1)/fimTurma!I$2,"") -> 
A27: =IF(fimTurma!B27<>"",fimTurma!B27,"") ->  | B27: =fimTurma!A27 -> 24 | C27: =IF(fimTurma!C27<>"",fimTurma!C27,"") ->  | D27: =IF(fimTurma!D27<>"",fimTurma!D27,"") ->  | E27: =IF(AND(fimTurma!F$2<>"",fimTurma!F27<>""),(fimTurma!F27-fimTurma!F$1)/fimTurma!F$2,"") ->  | F27: =IF(AND(fimTurma!G$2<>"",fimTurma!G27<>""),(fimTurma!G27-fimTurma!G$1)/fimTurma!G$2,"") ->  | G27: =IF(AND(fimTurma!H$2<>"",fimTurma!H27<>""),(fimTurma!H27-fimTurma!H$1)/fimTurma!H$2,"") ->  | H27: =IF(AND(fimTurma!I$2<>"",fimTurma!I27<>""),(fimTurma!I27-fimTurma!I$1)/fimTurma!I$2,"") -> 
A28: =IF(fimTurma!B28<>"",fimTurma!B28,"") ->  | B28: =fimTurma!A28 -> 25 | C28: =IF(fimTurma!C28<>"",fimTurma!C28,"") ->  | D28: =IF(fimTurma!D28<>"",fimTurma!D28,"") ->  | E28: =IF(AND(fimTurma!F$2<>"",fimTurma!F28<>""),(fimTurma!F28-fimTurma!F$1)/fimTurma!F$2,"") ->  | F28: =IF(AND(fimTurma!G$2<>"",fimTurma!G28<>""),(fimTurma!G28-fimTurma!G$1)/fimTurma!G$2,"") ->  | G28: =IF(AND(fimTurma!H$2<>"",fimTurma!H28<>""),(fimTurma!H28-fimTurma!H$1)/fimTurma!H$2,"") ->  | H28: =IF(AND(fimTurma!I$2<>"",fimTurma!I28<>""),(fimTurma!I28-fimTurma!I$1)/fimTurma!I$2,"") -> 
A29: =IF(fimTurma!B29<>"",fimTurma!B29,"") ->  | B29: =fimTurma!A29 -> 26 | C29: =IF(fimTurma!C29<>"",fimTurma!C29,"") ->  | D29: =IF(fimTurma!D29<>"",fimTurma!D29,"") ->  | E29: =IF(AND(fimTurma!F$2<>"",fimTurma!F29<>""),(fimTurma!F29-fimTurma!F$1)/fimTurma!F$2,"") ->  | F29: =IF(AND(fimTurma!G$2<>"",fimTurma!G29<>""),(fimTurma!G29-fimTurma!G$1)/fimTurma!G$2,"") ->  | G29: =IF(AND(fimTurma!H$2<>"",fimTurma!H29<>""),(fimTurma!H29-fimTurma!H$1)/fimTurma!H$2,"") ->  | H29: =IF(AND(fimTurma!I$2<>"",fimTurma!I29<>""),(fimTurma!I29-fimTurma!I$1)/fimTurma!I$2,"") -> 
A30: =IF(fimTurma!B30<>"",fimTurma!B30,"") ->  | B30: =fimTurma!A30 -> 27 | C30: =IF(fimTurma!C30<>"",fimTurma!C30,"") ->  | D30: =IF(fimTurma!D30<>"",fimTurma!D30,"") ->  | E30: =IF(AND(fimTurma!F$2<>"",fimTurma!F30<>""),(fimTurma!F30-fimTurma!F$1)/fimTurma!F$2,"") ->  | F30: =IF(AND(fimTurma!G$2<>"",fimTurma!G30<>""),(fimTurma!G30-fimTurma!G$1)/fimTurma!G$2,"") ->  | G30: =IF(AND(fimTurma!H$2<>"",fimTurma!H30<>""),(fimTurma!H30-fimTurma!H$1)/fimTurma!H$2,"") ->  | H30: =IF(AND(fimTurma!I$2<>"",fimTurma!I30<>""),(fimTurma!I30-fimTurma!I$1)/fimTurma!I$2,"") -> 
A31: =IF(fimTurma!B31<>"",fimTurma!B31,"") ->  | B31: =fimTurma!A31 -> 28 | C31: =IF(fimTurma!C31<>"",fimTurma!C31,"") ->  | D31: =IF(fimTurma!D31<>"",fimTurma!D31,"") ->  | E31: =IF(AND(fimTurma!F$2<>"",fimTurma!F31<>""),(fimTurma!F31-fimTurma!F$1)/fimTurma!F$2,"") ->  | F31: =IF(AND(fimTurma!G$2<>"",fimTurma!G31<>""),(fimTurma!G31-fimTurma!G$1)/fimTurma!G$2,"") ->  | G31: =IF(AND(fimTurma!H$2<>"",fimTurma!H31<>""),(fimTurma!H31-fimTurma!H$1)/fimTurma!H$2,"") ->  | H31: =IF(AND(fimTurma!I$2<>"",fimTurma!I31<>""),(fimTurma!I31-fimTurma!I$1)/fimTurma!I$2,"") -> 
A32: =IF(fimTurma!B32<>"",fimTurma!B32,"") ->  | B32: =fimTurma!A32 -> 29 | C32: =IF(fimTurma!C32<>"",fimTurma!C32,"") ->  | D32: =IF(fimTurma!D32<>"",fimTurma!D32,"") ->  | E32: =IF(AND(fimTurma!F$2<>"",fimTurma!F32<>""),(fimTurma!F32-fimTurma!F$1)/fimTurma!F$2,"") ->  | F32: =IF(AND(fimTurma!G$2<>"",fimTurma!G32<>""),(fimTurma!G32-fimTurma!G$1)/fimTurma!G$2,"") ->  | G32: =IF(AND(fimTurma!H$2<>"",fimTurma!H32<>""),(fimTurma!H32-fimTurma!H$1)/fimTurma!H$2,"") ->  | H32: =IF(AND(fimTurma!I$2<>"",fimTurma!I32<>""),(fimTurma!I32-fimTurma!I$1)/fimTurma!I$2,"") -> 
A33: =IF(fimTurma!B33<>"",fimTurma!B33,"") ->  | B33: =fimTurma!A33 -> 30 | C33: =IF(fimTurma!C33<>"",fimTurma!C33,"") ->  | D33: =IF(fimTurma!D33<>"",fimTurma!D33,"") ->  | E33: =IF(AND(fimTurma!F$2<>"",fimTurma!F33<>""),(fimTurma!F33-fimTurma!F$1)/fimTurma!F$2,"") ->  | F33: =IF(AND(fimTurma!G$2<>"",fimTurma!G33<>""),(fimTurma!G33-fimTurma!G$1)/fimTurma!G$2,"") ->  | G33: =IF(AND(fimTurma!H$2<>"",fimTurma!H33<>""),(fimTurma!H33-fimTurma!H$1)/fimTurma!H$2,"") ->  | H33: =IF(AND(fimTurma!I$2<>"",fimTurma!I33<>""),(fimTurma!I33-fimTurma!I$1)/fimTurma!I$2,"") -> 
A34: =IF(fimTurma!B34<>"",fimTurma!B34,"") ->  | B34: =fimTurma!A34 -> 31 | C34: =IF(fimTurma!C34<>"",fimTurma!C34,"") ->  | D34: =IF(fimTurma!D34<>"",fimTurma!D34,"") ->  | E34: =IF(AND(fimTurma!F$2<>"",fimTurma!F34<>""),(fimTurma!F34-fimTurma!F$1)/fimTurma!F$2,"") ->  | F34: =IF(AND(fimTurma!G$2<>"",fimTurma!G34<>""),(fimTurma!G34-fimTurma!G$1)/fimTurma!G$2,"") ->  | G34: =IF(AND(fimTurma!H$2<>"",fimTurma!H34<>""),(fimTurma!H34-fimTurma!H$1)/fimTurma!H$2,"") ->  | H34: =IF(AND(fimTurma!I$2<>"",fimTurma!I34<>""),(fimTurma!I34-fimTurma!I$1)/fimTurma!I$2,"") -> 
A35: =IF(fimTurma!B35<>"",fimTurma!B35,"") ->  | B35: =fimTurma!A35 -> 32 | C35: =IF(fimTurma!C35<>"",fimTurma!C35,"") ->  | D35: =IF(fimTurma!D35<>"",fimTurma!D35,"") ->  | E35: =IF(AND(fimTurma!F$2<>"",fimTurma!F35<>""),(fimTurma!F35-fimTurma!F$1)/fimTurma!F$2,"") ->  | F35: =IF(AND(fimTurma!G$2<>"",fimTurma!G35<>""),(fimTurma!G35-fimTurma!G$1)/fimTurma!G$2,"") ->  | G35: =IF(AND(fimTurma!H$2<>"",fimTurma!H35<>""),(fimTurma!H35-fimTurma!H$1)/fimTurma!H$2,"") ->  | H35: =IF(AND(fimTurma!I$2<>"",fimTurma!I35<>""),(fimTurma!I35-fimTurma!I$1)/fimTurma!I$2,"") -> 
A36: =IF(fimTurma!B36<>"",fimTurma!B36,"") ->  | B36: =fimTurma!A36 -> 33 | C36: =IF(fimTurma!C36<>"",fimTurma!C36,"") ->  | D36: =IF(fimTurma!D36<>"",fimTurma!D36,"") ->  | E36: =IF(AND(fimTurma!F$2<>"",fimTurma!F36<>""),(fimTurma!F36-fimTurma!F$1)/fimTurma!F$2,"") ->  | F36: =IF(AND(fimTurma!G$2<>"",fimTurma!G36<>""),(fimTurma!G36-fimTurma!G$1)/fimTurma!G$2,"") ->  | G36: =IF(AND(fimTurma!H$2<>"",fimTurma!H36<>""),(fimTurma!H36-fimTurma!H$1)/fimTurma!H$2,"") ->  | H36: =IF(AND(fimTurma!I$2<>"",fimTurma!I36<>""),(fimTurma!I36-fimTurma!I$1)/fimTurma!I$2,"") -> 
A37: =IF(fimTurma!B37<>"",fimTurma!B37,"") ->  | B37: =fimTurma!A37 -> 34 | C37: =IF(fimTurma!C37<>"",fimTurma!C37,"") ->  | D37: =IF(fimTurma!D37<>"",fimTurma!D37,"") ->  | E37: =IF(AND(fimTurma!F$2<>"",fimTurma!F37<>""),(fimTurma!F37-fimTurma!F$1)/fimTurma!F$2,"") ->  | F37: =IF(AND(fimTurma!G$2<>"",fimTurma!G37<>""),(fimTurma!G37-fimTurma!G$1)/fimTurma!G$2,"") ->  | G37: =IF(AND(fimTurma!H$2<>"",fimTurma!H37<>""),(fimTurma!H37-fimTurma!H$1)/fimTurma!H$2,"") ->  | H37: =IF(AND(fimTurma!I$2<>"",fimTurma!I37<>""),(fimTurma!I37-fimTurma!I$1)/fimTurma!I$2,"") -> 
A38: =IF(fimTurma!B38<>"",fimTurma!B38,"") ->  | B38: =fimTurma!A38 -> 35 | C38: =IF(fimTurma!C38<>"",fimTurma!C38,"") ->  | D38: =IF(fimTurma!D38<>"",fimTurma!D38,"") ->  | E38: =IF(AND(fimTurma!F$2<>"",fimTurma!F38<>""),(fimTurma!F38-fimTurma!F$1)/fimTurma!F$2,"") ->  | F38: =IF(AND(fimTurma!G$2<>"",fimTurma!G38<>""),(fimTurma!G38-fimTurma!G$1)/fimTurma!G$2,"") ->  | G38: =IF(AND(fimTurma!H$2<>"",fimTurma!H38<>""),(fimTurma!H38-fimTurma!H$1)/fimTurma!H$2,"") ->  | H38: =IF(AND(fimTurma!I$2<>"",fimTurma!I38<>""),(fimTurma!I38-fimTurma!I$1)/fimTurma!I$2,"") -> 
A39: =IF(fimTurma!B39<>"",fimTurma!B39,"") ->  | B39: =fimTurma!A39 -> 36 | C39: =IF(fimTurma!C39<>"",fimTurma!C39,"") ->  | D39: =IF(fimTurma!D39<>"",fimTurma!D39,"") ->  | E39: =IF(AND(fimTurma!F$2<>"",fimTurma!F39<>""),(fimTurma!F39-fimTurma!F$1)/fimTurma!F$2,"") ->  | F39: =IF(AND(fimTurma!G$2<>"",fimTurma!G39<>""),(fimTurma!G39-fimTurma!G$1)/fimTurma!G$2,"") ->  | G39: =IF(AND(fimTurma!H$2<>"",fimTurma!H39<>""),(fimTurma!H39-fimTurma!H$1)/fimTurma!H$2,"") ->  | H39: =IF(AND(fimTurma!I$2<>"",fimTurma!I39<>""),(fimTurma!I39-fimTurma!I$1)/fimTurma!I$2,"") -> 
A40: =IF(fimTurma!B40<>"",fimTurma!B40,"") ->  | B40: =fimTurma!A40 -> 37 | C40: =IF(fimTurma!C40<>"",fimTurma!C40,"") ->  | D40: =IF(fimTurma!D40<>"",fimTurma!D40,"") ->  | E40: =IF(AND(fimTurma!F$2<>"",fimTurma!F40<>""),(fimTurma!F40-fimTurma!F$1)/fimTurma!F$2,"") ->  | F40: =IF(AND(fimTurma!G$2<>"",fimTurma!G40<>""),(fimTurma!G40-fimTurma!G$1)/fimTurma!G$2,"") ->  | G40: =IF(AND(fimTurma!H$2<>"",fimTurma!H40<>""),(fimTurma!H40-fimTurma!H$1)/fimTurma!H$2,"") ->  | H40: =IF(AND(fimTurma!I$2<>"",fimTurma!I40<>""),(fimTurma!I40-fimTurma!I$1)/fimTurma!I$2,"") -> 
A41: =IF(fimTurma!B41<>"",fimTurma!B41,"") ->  | B41: =fimTurma!A41 -> 38 | C41: =IF(fimTurma!C41<>"",fimTurma!C41,"") ->  | D41: =IF(fimTurma!D41<>"",fimTurma!D41,"") ->  | E41: =IF(AND(fimTurma!F$2<>"",fimTurma!F41<>""),(fimTurma!F41-fimTurma!F$1)/fimTurma!F$2,"") ->  | F41: =IF(AND(fimTurma!G$2<>"",fimTurma!G41<>""),(fimTurma!G41-fimTurma!G$1)/fimTurma!G$2,"") ->  | G41: =IF(AND(fimTurma!H$2<>"",fimTurma!H41<>""),(fimTurma!H41-fimTurma!H$1)/fimTurma!H$2,"") ->  | H41: =IF(AND(fimTurma!I$2<>"",fimTurma!I41<>""),(fimTurma!I41-fimTurma!I$1)/fimTurma!I$2,"") -> 
A42: =IF(fimTurma!B42<>"",fimTurma!B42,"") ->  | B42: =fimTurma!A42 -> 39 | C42: =IF(fimTurma!C42<>"",fimTurma!C42,"") ->  | D42: =IF(fimTurma!D42<>"",fimTurma!D42,"") ->  | E42: =IF(AND(fimTurma!F$2<>"",fimTurma!F42<>""),(fimTurma!F42-fimTurma!F$1)/fimTurma!F$2,"") ->  | F42: =IF(AND(fimTurma!G$2<>"",fimTurma!G42<>""),(fimTurma!G42-fimTurma!G$1)/fimTurma!G$2,"") ->  | G42: =IF(AND(fimTurma!H$2<>"",fimTurma!H42<>""),(fimTurma!H42-fimTurma!H$1)/fimTurma!H$2,"") ->  | H42: =IF(AND(fimTurma!I$2<>"",fimTurma!I42<>""),(fimTurma!I42-fimTurma!I$1)/fimTurma!I$2,"") -> 
A43: =IF(fimTurma!B43<>"",fimTurma!B43,"") ->  | B43: =fimTurma!A43 -> 40 | C43: =IF(fimTurma!C43<>"",fimTurma!C43,"") ->  | D43: =IF(fimTurma!D43<>"",fimTurma!D43,"") ->  | E43: =IF(AND(fimTurma!F$2<>"",fimTurma!F43<>""),(fimTurma!F43-fimTurma!F$1)/fimTurma!F$2,"") ->  | F43: =IF(AND(fimTurma!G$2<>"",fimTurma!G43<>""),(fimTurma!G43-fimTurma!G$1)/fimTurma!G$2,"") ->  | G43: =IF(AND(fimTurma!H$2<>"",fimTurma!H43<>""),(fimTurma!H43-fimTurma!H$1)/fimTurma!H$2,"") ->  | H43: =IF(AND(fimTurma!I$2<>"",fimTurma!I43<>""),(fimTurma!I43-fimTurma!I$1)/fimTurma!I$2,"") -> 
A44: =IF(fimTurma!B44<>"",fimTurma!B44,"") ->  | B44: =fimTurma!A44 -> 41 | C44: =IF(fimTurma!C44<>"",fimTurma!C44,"") ->  | D44: =IF(fimTurma!D44<>"",fimTurma!D44,"") ->  | E44: =IF(AND(fimTurma!F$2<>"",fimTurma!F44<>""),(fimTurma!F44-fimTurma!F$1)/fimTurma!F$2,"") ->  | F44: =IF(AND(fimTurma!G$2<>"",fimTurma!G44<>""),(fimTurma!G44-fimTurma!G$1)/fimTurma!G$2,"") ->  | G44: =IF(AND(fimTurma!H$2<>"",fimTurma!H44<>""),(fimTurma!H44-fimTurma!H$1)/fimTurma!H$2,"") ->  | H44: =IF(AND(fimTurma!I$2<>"",fimTurma!I44<>""),(fimTurma!I44-fimTurma!I$1)/fimTurma!I$2,"") -> 
A45: =IF(fimTurma!B45<>"",fimTurma!B45,"") ->  | B45: =fimTurma!A45 -> 42 | C45: =IF(fimTurma!C45<>"",fimTurma!C45,"") ->  | D45: =IF(fimTurma!D45<>"",fimTurma!D45,"") ->  | E45: =IF(AND(fimTurma!F$2<>"",fimTurma!F45<>""),(fimTurma!F45-fimTurma!F$1)/fimTurma!F$2,"") ->  | F45: =IF(AND(fimTurma!G$2<>"",fimTurma!G45<>""),(fimTurma!G45-fimTurma!G$1)/fimTurma!G$2,"") ->  | G45: =IF(AND(fimTurma!H$2<>"",fimTurma!H45<>""),(fimTurma!H45-fimTurma!H$1)/fimTurma!H$2,"") ->  | H45: =IF(AND(fimTurma!I$2<>"",fimTurma!I45<>""),(fimTurma!I45-fimTurma!I$1)/fimTurma!I$2,"") -> 
A46: =IF(fimTurma!B46<>"",fimTurma!B46,"") ->  | B46: =fimTurma!A46 -> 43 | C46: =IF(fimTurma!C46<>"",fimTurma!C46,"") ->  | D46: =IF(fimTurma!D46<>"",fimTurma!D46,"") ->  | E46: =IF(AND(fimTurma!F$2<>"",fimTurma!F46<>""),(fimTurma!F46-fimTurma!F$1)/fimTurma!F$2,"") ->  | F46: =IF(AND(fimTurma!G$2<>"",fimTurma!G46<>""),(fimTurma!G46-fimTurma!G$1)/fimTurma!G$2,"") ->  | G46: =IF(AND(fimTurma!H$2<>"",fimTurma!H46<>""),(fimTurma!H46-fimTurma!H$1)/fimTurma!H$2,"") ->  | H46: =IF(AND(fimTurma!I$2<>"",fimTurma!I46<>""),(fimTurma!I46-fimTurma!I$1)/fimTurma!I$2,"") -> 
A47: =IF(fimTurma!B47<>"",fimTurma!B47,"") ->  | B47: =fimTurma!A47 -> 44 | C47: =IF(fimTurma!C47<>"",fimTurma!C47,"") ->  | D47: =IF(fimTurma!D47<>"",fimTurma!D47,"") ->  | E47: =IF(AND(fimTurma!F$2<>"",fimTurma!F47<>""),(fimTurma!F47-fimTurma!F$1)/fimTurma!F$2,"") ->  | F47: =IF(AND(fimTurma!G$2<>"",fimTurma!G47<>""),(fimTurma!G47-fimTurma!G$1)/fimTurma!G$2,"") ->  | G47: =IF(AND(fimTurma!H$2<>"",fimTurma!H47<>""),(fimTurma!H47-fimTurma!H$1)/fimTurma!H$2,"") ->  | H47: =IF(AND(fimTurma!I$2<>"",fimTurma!I47<>""),(fimTurma!I47-fimTurma!I$1)/fimTurma!I$2,"") -> 
A48: =IF(fimTurma!B48<>"",fimTurma!B48,"") ->  | B48: =fimTurma!A48 -> 45 | C48: =IF(fimTurma!C48<>"",fimTurma!C48,"") ->  | D48: =IF(fimTurma!D48<>"",fimTurma!D48,"") ->  | E48: =IF(AND(fimTurma!F$2<>"",fimTurma!F48<>""),(fimTurma!F48-fimTurma!F$1)/fimTurma!F$2,"") ->  | F48: =IF(AND(fimTurma!G$2<>"",fimTurma!G48<>""),(fimTurma!G48-fimTurma!G$1)/fimTurma!G$2,"") ->  | G48: =IF(AND(fimTurma!H$2<>"",fimTurma!H48<>""),(fimTurma!H48-fimTurma!H$1)/fimTurma!H$2,"") ->  | H48: =IF(AND(fimTurma!I$2<>"",fimTurma!I48<>""),(fimTurma!I48-fimTurma!I$1)/fimTurma!I$2,"") -> 
A49: =IF(fimTurma!B49<>"",fimTurma!B49,"") ->  | B49: =fimTurma!A49 -> 46 | C49: =IF(fimTurma!C49<>"",fimTurma!C49,"") ->  | D49: =IF(fimTurma!D49<>"",fimTurma!D49,"") ->  | E49: =IF(AND(fimTurma!F$2<>"",fimTurma!F49<>""),(fimTurma!F49-fimTurma!F$1)/fimTurma!F$2,"") ->  | F49: =IF(AND(fimTurma!G$2<>"",fimTurma!G49<>""),(fimTurma!G49-fimTurma!G$1)/fimTurma!G$2,"") ->  | G49: =IF(AND(fimTurma!H$2<>"",fimTurma!H49<>""),(fimTurma!H49-fimTurma!H$1)/fimTurma!H$2,"") ->  | H49: =IF(AND(fimTurma!I$2<>"",fimTurma!I49<>""),(fimTurma!I49-fimTurma!I$1)/fimTurma!I$2,"") -> 
A50: =IF(fimTurma!B50<>"",fimTurma!B50,"") ->  | B50: =fimTurma!A50 -> 47 | C50: =IF(fimTurma!C50<>"",fimTurma!C50,"") ->  | D50: =IF(fimTurma!D50<>"",fimTurma!D50,"") ->  | E50: =IF(AND(fimTurma!F$2<>"",fimTurma!F50<>""),(fimTurma!F50-fimTurma!F$1)/fimTurma!F$2,"") ->  | F50: =IF(AND(fimTurma!G$2<>"",fimTurma!G50<>""),(fimTurma!G50-fimTurma!G$1)/fimTurma!G$2,"") ->  | G50: =IF(AND(fimTurma!H$2<>"",fimTurma!H50<>""),(fimTurma!H50-fimTurma!H$1)/fimTurma!H$2,"") ->  | H50: =IF(AND(fimTurma!I$2<>"",fimTurma!I50<>""),(fimTurma!I50-fimTurma!I$1)/fimTurma!I$2,"") -> 
A51: =IF(fimTurma!B51<>"",fimTurma!B51,"") ->  | B51: =fimTurma!A51 -> 48 | C51: =IF(fimTurma!C51<>"",fimTurma!C51,"") ->  | D51: =IF(fimTurma!D51<>"",fimTurma!D51,"") ->  | E51: =IF(AND(fimTurma!F$2<>"",fimTurma!F51<>""),(fimTurma!F51-fimTurma!F$1)/fimTurma!F$2,"") ->  | F51: =IF(AND(fimTurma!G$2<>"",fimTurma!G51<>""),(fimTurma!G51-fimTurma!G$1)/fimTurma!G$2,"") ->  | G51: =IF(AND(fimTurma!H$2<>"",fimTurma!H51<>""),(fimTurma!H51-fimTurma!H$1)/fimTurma!H$2,"") ->  | H51: =IF(AND(fimTurma!I$2<>"",fimTurma!I51<>""),(fimTurma!I51-fimTurma!I$1)/fimTurma!I$2,"") -> 
A52: =IF(fimTurma!B52<>"",fimTurma!B52,"") ->  | B52: =fimTurma!A52 -> 49 | C52: =IF(fimTurma!C52<>"",fimTurma!C52,"") ->  | D52: =IF(fimTurma!D52<>"",fimTurma!D52,"") ->  | E52: =IF(AND(fimTurma!F$2<>"",fimTurma!F52<>""),(fimTurma!F52-fimTurma!F$1)/fimTurma!F$2,"") ->  | F52: =IF(AND(fimTurma!G$2<>"",fimTurma!G52<>""),(fimTurma!G52-fimTurma!G$1)/fimTurma!G$2,"") ->  | G52: =IF(AND(fimTurma!H$2<>"",fimTurma!H52<>""),(fimTurma!H52-fimTurma!H$1)/fimTurma!H$2,"") ->  | H52: =IF(AND(fimTurma!I$2<>"",fimTurma!I52<>""),(fimTurma!I52-fimTurma!I$1)/fimTurma!I$2,"") -> 
A53: =IF(fimTurma!B53<>"",fimTurma!B53,"") ->  | B53: =fimTurma!A53 -> 50 | C53: =IF(fimTurma!C53<>"",fimTurma!C53,"") ->  | D53: =IF(fimTurma!D53<>"",fimTurma!D53,"") ->  | E53: =IF(AND(fimTurma!F$2<>"",fimTurma!F53<>""),(fimTurma!F53-fimTurma!F$1)/fimTurma!F$2,"") ->  | F53: =IF(AND(fimTurma!G$2<>"",fimTurma!G53<>""),(fimTurma!G53-fimTurma!G$1)/fimTurma!G$2,"") ->  | G53: =IF(AND(fimTurma!H$2<>"",fimTurma!H53<>""),(fimTurma!H53-fimTurma!H$1)/fimTurma!H$2,"") ->  | H53: =IF(AND(fimTurma!I$2<>"",fimTurma!I53<>""),(fimTurma!I53-fimTurma!I$1)/fimTurma!I$2,"") -> 

Sheet profRelatório
A1: RELATÓRIO RESUMO PARA O PROFESSOR/TREINADOR
A2: =_xlfn.CONCAT(fimTurma!C1,"º ano"," | ",fimTurma!C2) -> 2º ano | A
C4: Início do Ano | G4: Fim do Ano | K4: Melhoria
C5: Média | E5: Desvio | G5: Média | I5: Desvio | K5: Com
E6: Padrão | I6: Padrão | K6: Significado?
A7: APTIDÃO MOTORA
A8: =IF(fimTurma!A2=1,IFERROR(VLOOKUP(1,fimAuxiliar!L3:Q3,2,0),""),"") -> Agilidade | C8: =IF(fimTurma!$A$2=1,IFERROR(VLOOKUP(1,fimAuxiliar!$L$3:$X$3,11,0),0),0) -> 12.5 | E8: =IF(fimTurma!$A$2=1,IFERROR(VLOOKUP(1,fimAuxiliar!L3:X3,12,0),0),0) -> 1.707825128 | G8: =IF(fimTurma!A2=1,IFERROR(VLOOKUP(1,fimAuxiliar!L3:X3,4,0),0),0) -> 14.91666667 | I8: =IF(fimTurma!A2=1,IFERROR(VLOOKUP(1,fimAuxiliar!L3:X3,13,0),0),0) -> 1.320248293 | K8: =IF(fimTurma!A2=1,IFERROR(VLOOKUP(1,fimAuxiliar!L3:X3,9,0),0),0) -> Não
A12: APTIDÃO CARDIORRESPIRATÓRIA
A13: =IF(fimTurma!A2=1,IFERROR(VLOOKUP(1,fimAuxiliar!L4:Q4,2,0),""),"") -> Shuttle run 20m | C13: =IF(fimTurma!A2=1,IFERROR(VLOOKUP(1,fimAuxiliar!L4:X4,11,0),0),0) -> 10.16666667 | E13: =IF(fimTurma!A2=1,IFERROR(VLOOKUP(1,fimAuxiliar!L4:X4,12,0),0),0) -> 1.818118686 | G13: =IF(fimTurma!A2=1,IFERROR(VLOOKUP(1,fimAuxiliar!L4:X4,4,0),0),0) -> 11.75 | I13: =IF(fimTurma!A2=1,IFERROR(VLOOKUP(1,fimAuxiliar!L4:X4,13,0),0),0) -> 1.299038106 | K13: =IF(fimTurma!A2=1,IFERROR(VLOOKUP(1,fimAuxiliar!L4:X4,9,0),0),0) -> Sim
A17: APTIDÃO MUSCULAR
A18: =IF(fimTurma!A2=1,IFERROR(VLOOKUP(1,fimAuxiliar!L5:Q6,2,0),""),"") -> Força de preensão | C18: =IF(fimTurma!A2=1,IFERROR(VLOOKUP(1,fimAuxiliar!L5:X6,11,0),0),0) -> 8.945454545 | E18: =IF(fimTurma!A2=1,IFERROR(VLOOKUP(1,fimAuxiliar!L5:X6,12,0),0),0) -> 2.424632544 | G18: =IF(fimTurma!A2=1,IFERROR(VLOOKUP(1,fimAuxiliar!L5:X6,4,0),0),0) -> 7.763636364 | I18: =IF(fimTurma!A2=1,IFERROR(VLOOKUP(1,fimAuxiliar!L5:X6,13,0),0),0) -> 0.9660347512 | K18: =IF(fimTurma!A2=1,IFERROR(VLOOKUP(1,fimAuxiliar!L5:X6,9,0),0),0) -> Não
A20: =IF(fimTurma!A2=1,IFERROR(VLOOKUP(2,fimAuxiliar!L5:Q6,2,0),""),"") -> Salto horizontal | C20: =IF(fimTurma!A2=1,IFERROR(VLOOKUP(2,fimAuxiliar!L5:X6,11,0),0),0) -> 29.86666667 | E20: =IF(fimTurma!A2=1,IFERROR(VLOOKUP(2,fimAuxiliar!L5:X6,12,0),0),0) -> 4.077853466 | G20: =IF(fimTurma!A2=1,IFERROR(VLOOKUP(2,fimAuxiliar!L5:X6,4,0),0),0) -> 34.52727273 | I20: =IF(fimTurma!A2=1,IFERROR(VLOOKUP(2,fimAuxiliar!L5:X6,13,0),0),0) -> 3.076624747 | K20: =IF(fimTurma!A2=1,IFERROR(VLOOKUP(2,fimAuxiliar!L5:X6,9,0),0),0) -> Sim

Sheet profPorTeste
A1: RELATÓRIO POR TESTE PARA O PROFESSOR/TREINADOR
A2: =_xlfn.CONCAT(fimTurma!C1,"º ano"," | ",fimTurma!C2) -> 2º ano | A
A5: Teste: Salto horizontal

Sheet iniAuxiliar (hidden)
A1: Número | B1: Ordem | C1: Teste | D1: Criança | E1: Média | F1: Mínimo | G1: Máximo | H1: Score Z | I1: Nome Gráfico | J1: Dpadrão | K1: Grupo | L1: Ordem Resumo | M1: Nome | N1: Criança | O1: Média | P1: Mínimo | Q1: Máximo
B2: 0
A3: =COUNT(iniTurma!F4:F53) -> 12 | B3: =IF(A3>0,B2+1,B2) -> 1 | C3: =iniTurma!F3 -> Agilidade | D3: =IF(AND(iniTurma!$A$2=1,B3=B2+1),VLOOKUP("x",iniTurma!$B$4:$M$53,5,0),"") -> 12 | E3: =IF(B3=B2+1,iniTurma!$F$1,"") -> 12.5 | F3: =IF(AND(iniTurma!$A$2=1,B3=B2+1),SMALL(iniTurma!$F$4:$F$53,1),"") -> 10 | G3: =IF(AND(iniTurma!$A$2=1,B3=B2+1),LARGE(iniTurma!$F$4:$F$53,1),"") -> 15 | H3: =IF(AND(iniTurma!$A$2=1,B3=B2+1),VLOOKUP("x",'iniScore Z'!$A$4:$L$53,5,0),"") -> -0.2927700219 | I3: =C3 -> Agilidade | J3: =IF(B3=B2+1,iniTurma!$F$2,"") -> 1.707825128 | K3: APTIDÃO MOTORA | L3: =IF(K3<>K2,IF(A3>0,1,0),IF(A3>0,L2+1,L2)) -> 1 | M3: =I3 -> Agilidade | N3: =D3 -> 12 | O3: =E3 -> 12.5 | P3: 10 | Q3: 15
A4: =COUNT(iniTurma!G4:G53) -> 12 | B4: =IF(A4>0,B3+1,B3) -> 2 | C4: =iniTurma!G3 -> Shuttle run 20m | D4: =IF(AND(iniTurma!$A$2=1,B4=B3+1),VLOOKUP("x",iniTurma!$B$4:$M$53,6,0),"") -> 8 | E4: =IF(B4=B3+1,iniTurma!$G$1,"") -> 10.16666667 | F4: =IF(AND(iniTurma!$A$2=1,B4=B3+1),SMALL(iniTurma!$G$4:$G$53,1),"") -> 7 | G4: =IF(AND(iniTurma!$A$2=1,B4=B3+1),LARGE(iniTurma!$G$4:$G$53,1),"") -> 13 | H4: =IF(AND(iniTurma!$A$2=1,B4=B3+1),VLOOKUP("x",'iniScore Z'!$A$4:$L$53,6,0),"") -> -1.191708046 | I4: =C4 -> Shuttle run 20m | J4: =IF(B4=B3+1,iniTurma!$G$2,"") -> 1.818118686 | K4: APTIDÃO CARDIORRESPIRATÓRIA | L4: =IF(K4<>K3,IF(A4>0,1,0),IF(A4>0,L3+1,L3)) -> 1 | M4: =I4 -> Shuttle run 20m | N4: =D4 -> 8 | O4: =E4 -> 10.16666667 | P4: =F4 -> 7 | Q4: =G4 -> 13
A5: =COUNT(iniTurma!H4:H53) -> 11 | B5: 3 | C5: =iniTurma!H3 -> Força de preensão | D5: =IF(AND(iniTurma!$A$2=1,B5=B4+1),VLOOKUP("x",iniTurma!$B$4:$M$53,7,0),"") -> 8.3 | E5: =IF(B5=B4+1,iniTurma!$H$1,"") -> 8.945454545 | F5: =IF(AND(iniTurma!$A$2=1,B5=B4+1),SMALL(iniTurma!$H$4:$H$53,1),"") -> 6 | G5: =IF(AND(iniTurma!$A$2=1,B5=B4+1),LARGE(iniTurma!$H$4:$H$53,1),"") -> 14.7 | H5: =IF(AND(iniTurma!$A$2=1,B5=B4+1),VLOOKUP("x",'iniScore Z'!$A$4:$L$53,7,0),"") -> -0.2662071607 | I5: Força de preensão | J5: =IF(B5=B4+1,iniTurma!$H$2,"") -> 2.424632544 | K5: APTIDÃO MUSCULAR | L5: 1 | M5: Força de preensão | N5: 8.3 | O5: 8.945454545 | P5: 6 | Q5: 14.7
A6: =COUNT(iniTurma!I4:I53) -> 12 | B6: 4 | C6: =iniTurma!I3 -> Salto horizontal | D6: =IF(AND(iniTurma!$A$2=1,B6=B5+1),VLOOKUP("x",iniTurma!$B$4:$M$53,8,0),"") -> 25 | E6: =IF(B6=B5+1,iniTurma!$I$1,"") -> 29.86666667 | F6: =IF(AND(iniTurma!$A$2=1,B6=B5+1),SMALL(iniTurma!$I$4:$I$53,1),"") -> 24 | G6: =IF(AND(iniTurma!$A$2=1,B6=B5+1),LARGE(iniTurma!$I$4:$I$53,1),"") -> 38 | H6: =IF(AND(iniTurma!$A$2=1,B6=B5+1),VLOOKUP("x",'iniScore Z'!$A$4:$L$53,8,0),"") -> -1.193438339 | I6: Salto horizontal | J6: =IF(B6=B5+1,iniTurma!$I$2,"") -> 4.077853466 | K6: APTIDÃO MUSCULAR | L6: 2 | M6: Salto horizontal | N6: 25 | O6: 29.86666667 | P6: 24 | Q6: 38
C13: Dados para o gráfico | D13: Score Z
C14: =IF(iniTurma!A2=1,IFERROR(VLOOKUP(1,iniAuxiliar!B3:G10,2,0),""),"") -> Agilidade | D14: =IF(iniTurma!A2=1,IFERROR(VLOOKUP(1,iniAuxiliar!B3:H10,7,0),""),"") -> -0.2927700219
C15: =IF(iniTurma!A2=1,IFERROR(VLOOKUP(2,iniAuxiliar!B3:G10,2,0),""),"") -> Shuttle run 20m | D15: =IF(iniTurma!A2=1,IFERROR(VLOOKUP(2,iniAuxiliar!B3:H10,7,0),""),"") -> -1.191708046
C16: =IF(iniTurma!A2=1,IFERROR(VLOOKUP(3,iniAuxiliar!B3:G10,2,0),""),"") -> Força de preensão | D16: =IF(iniTurma!A2=1,IFERROR(VLOOKUP(3,iniAuxiliar!B3:H10,7,0),""),"") -> -0.2662071607
C17: =IF(iniTurma!A2=1,IFERROR(VLOOKUP(4,iniAuxiliar!B3:G10,2,0),""),"") -> Salto horizontal | D17: =IF(iniTurma!A2=1,IFERROR(VLOOKUP(4,iniAuxiliar!B3:H10,7,0),""),"") -> -1.193438339

Sheet fimAuxiliar (hidden)
A1: Número | B1: Ordem Resumo | C1: Teste | D1: Criança | E1: Média | F1: Mínimo | G1: Máximo | H1: Score Z | I1: Nome Gráfico | J1: Dpadrão | K1: Grupo | L1: Ordem Relatório | M1: Nome | N1: Criança | O1: Média | P1: Mínimo | Q1: Máximo | R1: Melhor | S1: difMédia | T1: Conclusão | U1: Teste T | V1: média | W1: desvio padrão | X1: dpadrão
B2: 0 | D2: fim | E2: fim | F2: fim | G2: fim | H2: fim | J2: fim | N2: fim | O2: fim | P2: fim | Q2: fim | V2: ini | W2: ini | X2: fim
A3: =COUNT(fimTurma!F4:F53) -> 12 | B3: =IF(A3>0,B2+1,B2) -> 1 | C3: =I3 -> Agilidade | D3: =IF(AND(fimTurma!$A$2=1,B3=B2+1),VLOOKUP("x",fimTurma!$B$4:$M$53,5,0),"") -> 14 | E3: =IF(B3=B2+1,fimTurma!$F$1,"") -> 14.91666667 | F3: =IF(AND(fimTurma!$A$2=1,B3=B2+1),SMALL(fimTurma!$F$4:$F$53,1),"") -> 13 | G3: =IF(AND(fimTurma!$A$2=1,B3=B2+1),LARGE(fimTurma!$F$4:$F$53,1),"") -> 17 | H3: =IF(AND(fimTurma!$A$2=1,B3=B2+1),VLOOKUP("x",'fimScore Z'!$A$4:$L$53,5,0),"") -> -0.6943138434 | I3: =fimTurma!F3 -> Agilidade | J3: =IF(B3=B2+1,fimTurma!$F$2,"") -> 1.320248293 | K3: APTIDÃO MOTORA | L3: =IF(K3<>K2,IF(A3>0,1,0),IF(A3>0,L2+1,L2)) -> 1 | M3: =I3 -> Agilidade | N3: =D3 -> 14 | O3: =E3 -> 14.91666667 | P3: 13 | Q3: 17 | R3: -1 | S3: =IF(AND(E3<>"",iniAuxiliar!E3<>""),E3-iniAuxiliar!E3,"") -> 2.416666667 | T3: =IF(AND(E3<>"",iniAuxiliar!E3<>""),IF(S3*R3<=0,"Não",IF(U3>=0.05,"Não","Sim")),"") -> Não | U3: =IF(AND(E3<>"",iniAuxiliar!E3<>""),IFERROR(_xlfn.T.TEST(iniTurma!F$4:F$53,fimTurma!F$4:F$53,1,1),_xlfn.T.TEST(iniTurma!F$4:F$53,fimTurma!F$4:F$53,1,2)),"") -> 0.0004018533158 | V3: =iniAuxiliar!E3 -> 12.5 | W3: =iniAuxiliar!J3 -> 1.707825128 | X3: =J3 -> 1.320248293
A4: =COUNT(fimTurma!G4:G53) -> 12 | B4: =IF(A4>0,B3+1,B3) -> 2 | C4: =I4 -> Shuttle run 20m | D4: =IF(AND(fimTurma!$A$2=1,B4=B3+1),VLOOKUP("x",fimTurma!$B$4:$M$53,6,0),"") -> 11 | E4: =IF(B4=B3+1,fimTurma!$G$1,"") -> 11.75 | F4: =IF(AND(fimTurma!$A$2=1,B4=B3+1),SMALL(fimTurma!$G$4:$G$53,1),"") -> 9 | G4: =IF(AND(fimTurma!$A$2=1,B4=B3+1),LARGE(fimTurma!$G$4:$G$53,1),"") -> 14 | H4: =IF(AND(fimTurma!$A$2=1,B4=B3+1),VLOOKUP("x",'fimScore Z'!$A$4:$L$53,6,0),"") -> -0.5773502692 | I4: =fimTurma!G3 -> Shuttle run 20m | J4: =IF(B4=B3+1,fimTurma!$G$2,"") -> 1.299038106 | K4: APTIDÃO CARDIORRESPIRATÓRIA | L4: =IF(K4<>K3,IF(A4>0,1,0),IF(A4>0,L3+1,L3)) -> 1 | M4: =I4 -> Shuttle run 20m | N4: =D4 -> 11 | O4: =E4 -> 11.75 | P4: =F4 -> 9 | Q4: =G4 -> 14 | R4: 1 | S4: =IF(AND(E4<>"",iniAuxiliar!E4<>""),E4-iniAuxiliar!E4,"") -> 1.583333333 | T4: =IF(AND(E4<>"",iniAuxiliar!E4<>""),IF(S4*R4<=0,"Não",IF(U4>=0.05,"Não","Sim")),"") -> Sim | U4: =IF(AND(E4<>"",iniAuxiliar!E4<>""),IFERROR(_xlfn.T.TEST(iniTurma!G$4:G$53,fimTurma!G$4:G$53,1,1),_xlfn.T.TEST(iniTurma!G$4:G$53,fimTurma!G$4:G$53,1,2)),"") -> 0.02126201261 | V4: =iniAuxiliar!E4 -> 10.16666667 | W4: =iniAuxiliar!J4 -> 1.818118686 | X4: =J4 -> 1.299038106
A5: =COUNT(fimTurma!H4:H53) -> 11 | B5: 3 | C5: Força de preensão | D5: =IF(AND(fimTurma!$A$2=1,B5=B4+1),VLOOKUP("x",fimTurma!$B$4:$M$53,7,0),"") -> 0 | E5: =IF(B5=B4+1,fimTurma!$H$1,"") -> 7.763636364 | F5: =IF(AND(fimTurma!$A$2=1,B5=B4+1),SMALL(fimTurma!$H$4:$H$53,1),"") -> 6.5 | G5: =IF(AND(fimTurma!$A$2=1,B5=B4+1),LARGE(fimTurma!$H$4:$H$53,1),"") -> 10.2 | H5: =IF(AND(fimTurma!$A$2=1,B5=B4+1),VLOOKUP("x",'fimScore Z'!$A$4:$L$53,7,0),"") ->  | I5: =fimTurma!H3 -> Força de preensão | J5: =IF(B5=B4+1,fimTurma!$H$2,"") -> 0.9660347512 | K5: APTIDÃO MUSCULAR | L5: 1 | M5: Força de preensão | N5: 0 | O5: 7.763636364 | P5: 6.5 | Q5: 10.2 | R5: 1 | S5: =IF(AND(E5<>"",iniAuxiliar!E5<>""),E5-iniAuxiliar!E5,"") -> -1.181818182 | T5: =IF(AND(E5<>"",iniAuxiliar!E5<>""),IF(S5*R5<=0,"Não",IF(U5>=0.05,"Não","Sim")),"") -> Não | U5: =IF(AND(E5<>"",iniAuxiliar!E5<>""),IFERROR(_xlfn.T.TEST(iniTurma!H$4:H$53,fimTurma!H$4:H$53,1,1),_xlfn.T.TEST(iniTurma!H$4:H$53,fimTurma!H$4:H$53,1,2)),"") -> 0.0957923662 | V5: =iniAuxiliar!E5 -> 8.945454545 | W5: =iniAuxiliar!J5 -> 2.424632544 | X5: 0.9660347512
A6: =COUNT(fimTurma!I4:I53) -> 11 | B6: 4 | C6: Salto horizontal | D6: =IF(AND(fimTurma!$A$2=1,B6=B5+1),VLOOKUP("x",fimTurma!$B$4:$M$53,8,0),"") -> 39 | E6: =IF(B6=B5+1,fimTurma!$I$1,"") -> 34.52727273 | F6: =IF(AND(fimTurma!$A$2=1,B6=B5+1),SMALL(fimTurma!$I$4:$I$53,1),"") -> 30 | G6: =IF(AND(fimTurma!$A$2=1,B6=B5+1),LARGE(fimTurma!$I$4:$I$53,1),"") -> 41 | H6: =IF(AND(fimTurma!$A$2=1,B6=B5+1),VLOOKUP("x",'fimScore Z'!$A$4:$L$53,8,0),"") -> 1.453777318 | I6: =fimTurma!I3 -> Salto horizontal | J6: =IF(B6=B5+1,fimTurma!$I$2,"") -> 3.076624747 | K6: APTIDÃO MUSCULAR | L6: 2 | M6: Salto horizontal | N6: 39 | O6: 34.52727273 | P6: 30 | Q6: 41 | R6: 1 | S6: =IF(AND(E6<>"",iniAuxiliar!E6<>""),E6-iniAuxiliar!E6,"") -> 4.660606061 | T6: =IF(AND(E6<>"",iniAuxiliar!E6<>""),IF(S6*R6<=0,"Não",IF(U6>=0.05,"Não","Sim")),"") -> Sim | U6: =IF(AND(E6<>"",iniAuxiliar!E6<>""),IFERROR(_xlfn.T.TEST(iniTurma!I$4:I$53,fimTurma!I$4:I$53,1,1),_xlfn.T.TEST(iniTurma!I$4:I$53,fimTurma!I$4:I$53,1,2)),"") -> 0.003741120656 | V6: =iniAuxiliar!E6 -> 29.86666667 | W6: =iniAuxiliar!J6 -> 4.077853466 | X6: 3.076624747
C13: Dados para o gráfico | D13: Score Z
C14: =IF(fimTurma!A2=1,IFERROR(VLOOKUP(1,fimAuxiliar!B3:G10,2,0),""),"") -> Agilidade | D14: =IF(fimTurma!A2=1,IFERROR(VLOOKUP(1,fimAuxiliar!B3:H10,7,0),""),"") -> -0.6943138434
C15: =IF(fimTurma!A2=1,IFERROR(VLOOKUP(2,fimAuxiliar!B3:G10,2,0),""),"") -> Shuttle run 20m | D15: =IF(fimTurma!A2=1,IFERROR(VLOOKUP(2,fimAuxiliar!B3:H10,7,0),""),"") -> -0.5773502692
C16: =IF(fimTurma!A2=1,IFERROR(VLOOKUP(3,fimAuxiliar!B3:G10,2,0),""),"") -> Força de preensão | D16: =IF(fimTurma!A2=1,IFERROR(VLOOKUP(3,fimAuxiliar!B3:H10,7,0),""),"") -> 
C17: =IF(fimTurma!A2=1,IFERROR(VLOOKUP(4,fimAuxiliar!B3:G10,2,0),""),"") -> Salto horizontal | D17: =IF(fimTurma!A2=1,IFERROR(VLOOKUP(4,fimAuxiliar!B3:H10,7,0),""),"") -> 1.453777318
C18: =IF(fimTurma!A2=1,IFERROR(VLOOKUP(5,fimAuxiliar!B3:G10,2,0),""),"") ->  | D18: =IF(fimTurma!A2=1,IFERROR(VLOOKUP(5,fimAuxiliar!B3:H10,7,0),""),"") -> 
C19: =IF(fimTurma!A2=1,IFERROR(VLOOKUP(6,fimAuxiliar!B3:G10,2,0),""),"") ->  | D19: =IF(fimTurma!A2=1,IFERROR(VLOOKUP(6,fimAuxiliar!B3:H10,7,0),""),"") -> 
C20: =IF(fimTurma!A2=1,IFERROR(VLOOKUP(7,fimAuxiliar!B3:G10,2,0),""),"") ->  | D20: =IF(fimTurma!A2=1,IFERROR(VLOOKUP(7,fimAuxiliar!B4:H11,7,0),""),"") -> 
C21: =IF(fimTurma!A2=1,IFERROR(VLOOKUP(8,fimAuxiliar!B3:G10,2,0),""),"") ->  | D21: =IF(fimTurma!A2=1,IFERROR(VLOOKUP(8,fimAuxiliar!B3:H10,7,0),""),"") -> 
